Workbook

Sheet Projektdaten (hidden)
A1: Tabelle zur Ermittlung der förderfähigen Ausgaben (EfA)
A2: Anlage 2 zum Aufruf zur Antragseinreichung zur Förderung von E-Fahrzeugen und notwendiger Ladeinfrastruktur (02/2021)
A4: Mithilfe dieser Tabelle können Sie die Grundlage für Ihre Förderung berechnen. Die Fördersumme berechnet sich aus der Multiplikation der hier berechneten förderfähigen Ausgaben mit der Förderquote. Bitte befüllen Sie diese Anlage, bevor Sie den Antrag in easy-Online ausfüllen. Im Reiter "Fahrzeuge" finden Sie als Auswahlfeld alle Fahrzeuge, für die aktuelle Preislisten veröffentlicht wurden. Für diese Fahrzeuge werden Pauschalen ausgezahlt. Nur wenn das Fahrzeug, welches Sie beantragen möchten, nicht darunter ist, können Sie es im Reiter "Sonderfahrzeuge" selbst eingeben. Gleiches gilt analog für den Bereich Ladeinfrastruktur. Übertragung in easy-Online: Im letzten Reiter "Vorlage für AZA" finden Sie eine Aufstellung Ihrer Fördergegenstände. Bitte übertragen Sie diese in Ihr easy-Online Formular unter der Rubrik "Gesamtfinanzierung". Als "Preis € / Stück" werden die förderfähigen Ausgaben aus der EfA-Tabelle eingetragen. Übermitteln Sie uns die Tabelle bitte in drei Varianten: 1. Im pdf-Format als Anhang zum easy-Online Antrag, 2. als Ausdruck per Post als Anlage zum Antrag sowie 3. im Excel-Format per E-Mail für die Begleitforschung an: elektromobilitaet@now-gmbh.de
A20: Übersichtsblatt Stammdaten - Bitte tragen Sie Ihre Projektdaten ein
A21: Bitte beantworten Sie diese Fragen wahrheitsgemäß. Diese Angaben haben keinen Einfluss auf die Förderung, sie dienen ausschließlich der statistischen Auswertung und Weiterentwicklung des Förderprogramms. | P21: JAoNEIN | Q21: Antragsteller | R21: Raumkategorie | S21: Einsatzkontext | T21: Einsatzgebiet | U21: Standortyp | V21: Beschilderung | W21: E/E
A22: Projekt | B22: Allgemeine Infornationen | C22: Projekt-Kurzbezeichnung (Akronym) | P22: Ja | Q22: gewerblich | R22: Großstadt/Metropolregion > 500.000 EW | S22: Carsharing (fester Stellplatz) | T22: überwiegend städtisch | U22: Firmenparkplatz (Flotte) | V22: Negative Beschilderung mit Zeichen 286, 290.1 | W22: nein
C23: Projekt-Beschreibung (Titel) | P23: Nein | Q23: kommunal | R23: Großstadt > 100.000 EW | S23: Carsharing (mehrere feste Stellplätze) | T23: überwiegend ländlich | U23: Halböffentlich | V23: Positive Beschilderung mit Zeichen 314, 314.1, 315 | W23: PV
C24: Ausführende Institution | R24: Mittelstadt > 50.000 EW | S24: CarSharing (Float) | T24: beides zu gleichen Teilen | U24: Öffentlich am Wohnort | V24: Nein | W24: Wind
C25: Raumkategorie | R25: Kleinstadt > 10.000 EW | S25: Dienstwagen | U25: Öffentlich zentral | W25: PV & Wind
C26: Gibt es einen Bezug zu einem aktuell laufenden oder beantragten Forschungs- und Entwicklungsprojekt? | R26: Stadt/Gemeinde < 10.000 EW | S26: Flotte (Firmen) | U26: Privat
B27: Fahrzeug | C27: Anzahl Fahrzeuge im gesamten Fuhrpark | R27: Landgemeinde | S27: Flotte (Kommunal) | U27: Firmenparkplatz (private Nutzung)
C28: davon bereits E-Fahrzeuge | R28: ausserhalb einer Ansiedlung | S28: Flotte (Mietwagen) | U28: Firmen- oder Betriebsgelände
C29: Einsatzkontext | S29: ÖPNV-Flotte
C30: Planen sie weitere Umstellungen auf alternative Antriebe innerhalb ihrer Flotte bis 2025 (bezogen auf die Gesamtanzahl in Zeile 27)? | S30: Privatwagen
C31: Falls ja: Anzahl der Umstellung in den kommenden 1-2 Jahren (2021/22) | S31: Lieferverkehr
C32: Falls ja: Anzahl der Umstellung in den darauffolgenden 1-3 Jahren (2023 – 2025) | S32: Taxi
C33: Ersetzen die beantragten E-Fahrzeuge vorhandene konventionelle Fahrzeuge? | S33: Leasing
C34: Fahren Ihre Fahrzeuge überwiegend im Stadtgebiet? | S34: Ride-Pooling, Ride-Hailing, Ride-Sharing
C35: An wievielen Tagen im Jahr werden die E-Fahrzeuge durchschnittlich im Einsatz sein? | S35: Kombination
B36: Ladeinfrastruktur | C36: Haben Sie bereits vorhandene Ladeinfrastruktur?
C37: Falls ja, wieviele Ladepunkte?
C38: Standorttyp der geplanten LIS
C39: Wird die LIS öffentlich zugänglich?
C40: Planen Sie eine Beschilderung des Parkplatzes?
C41: Planen Sie den Parkplatz mit Parkraumsensoren auszustatten?
C42: Planen Sie die Errichtung weiterer Ladepunkte?
C43: Falls ja: Wie viele Ladepunkte in den kommenden 1-2 Jahren (2021-22)?
C44: Falls ja: Wie viele Ladepunkte in den darauffolgenden 1-3 Jahren (2023-25)?
B45: Netzintegration & Erneuerbare Energie | C45: Haben Sie bereits ein Energiemanagement- system zur Steuerung elektrischer Verbraucher im Einsatz?
C46: Falls ja: Planen Sie die LIS in das Energiemanagementsystem zu integrieren?
C47: Falls nein: Planen Sie die Einführung eines Energiemanagementsystems im Zusammenhang mit der geplanten LIS?
C48: Betreiben bzw. nutzen Sie eine PV- bzw. Windkraftanlage zur lokalen, dezentralen Stromerzeugung?
C49: Falls ja: Planen Sie die lokal erzeugte erneuerbare Energie zum Laden der E-Fahrzeuge zu nutzen?
C50: Planen Sie die Anschaffung bzw. Erweiterung der lokalen erneuerabren Energieerzeugung in Zusammenhang mit der neuen LIS?

Sheet Fahrzeuge
A1: Tabelle zur Ermittlung der förderfähigen Ausgaben (EfA) | E1: ja | F1: nein | G1: Stand: 09.03.2023 | K1: FKZ: 03EMI6
A2: Hinweise: | G2: ergänzt: 07.02.2025
A3: Die Registerkarte 'Vorlage für AZA' stellt Ihre Eingaben so dar, wie sie in das easyOnline-Formular eingetragen werden müssen. | G3: korrigiert: 05.09.2024
A5: Bitte füllen Sie zunächst die folgenden Auswahlfelder aus:
A6: Antragsteller ist vorsteuerabzugsberechtigt [Auswahlbox]:
A7: Antragsteller ist zur Ausschreibung verpflichtet [Auswahbox]: | C7: nein
A8: Antragsteller ist selbst antragsberechtigt für den BaFa-Umweltbonus [Auswahbox]:
A9: Wählen Sie in der Liste unten die gewünschten Fahrzeuge (Auswahlbox) und die entsprechende Anzahl aus.
A10: Für Ladeinfrastruktur wählen Sie bitte die entsprechenden Registerkarte.
A11: Speichern Sie alle Arbeitsblätter (3 Seiten) als PDF und fügen Sie sie dem Antrag bei.
A12: Grün unterlegte Felder sind Eingabefelder.
A14: Pos. | B14: Typ E-Fahrzeug [Auswahlbox] | C14: Fahrzeugsegment nach Kraftfahrt-Bundesamt | D14: =IF(Fahrzeuge!$C$6="nein","Bruttopreis E-Fahrzeug",IF(Fahrzeuge!$C$6="ja","Nettopreis E-Fahrzeug","Bitte wählen sie aus, ob sie zum Vorsteuerabzug berechtigt sind!")) -> Bitte wählen sie aus, ob sie zum Vorsteuerabzug berechtigt sind! | E14: Typ Referenzfahrzeug | F14: =IF(Fahrzeuge!$C$6="nein","Bruttopreis Referenzfahrzeug",IF(Fahrzeuge!$C$6="ja","Nettopreis Referenzfahrzeug","Bitte wählen sie aus, ob sie zum Vorsteuerabzug berechtigt sind!")) -> Bitte wählen sie aus, ob sie zum Vorsteuerabzug berechtigt sind! | G14: =IF($C$6="nein","Förderfähige Ausgaben pro Fahrzeug (brutto)",IF($C$6="ja","Förderfähige Ausgaben pro Fahrzeug (netto)","Bitte wählen sie aus, ob sie zum Vorsteuerabzug berechtigt sind!")) -> Bitte wählen sie aus, ob sie zum Vorsteuerabzug berechtigt sind! | H14: =IF($C$8="ja","Information*: "&G14&" nach Anrechnung des Umweltbonus","") ->  | I14: Anzahl zu beschaffender Fahrzeuge des Typs | J14: erwartete durchschnittliche Jahres- Fahrleistung pro Fahrzeug in km | K14: Förderfähige Ausgaben | L14: Korrekturfeld PtJ | AI14: Fahrzeugklasse Abkürzungen
A15: 1 | C15: =IF(B15>0,CONCATENATE(VLOOKUP(B15,N40:W278,9,0)," (",VLOOKUP(B15,N40:W278,10,0),")"),"") ->  | D15: =IF($B15>0,IF(Fahrzeuge!$C$6="nein",VLOOKUP($B15,$N$40:$U$278,3,0),IF(Fahrzeuge!$C$6="ja",VLOOKUP($B15,$N$40:$U$278,2,0),"Bitte wählen sie aus, ob sie zum Vorsteuerabzug berechtigt sind!")),"") ->  | E15: =IF($B15>0,VLOOKUP($B15,$N$40:$U$278,4,0),"") ->  | F15: =IF($B15>0,IF(Fahrzeuge!$C$6="nein",VLOOKUP($B15,$N$40:$U$278,6,0),IF(Fahrzeuge!$C$6="ja",VLOOKUP($B15,$N$40:$U$278,5,0),"Bitte wählen sie aus, ob sie zum Vorsteuerabzug berechtigt sind!")),"") ->  | G15: =IF(B15>0,IF($C$6="nein",VLOOKUP($B15,$N$40:$U$278,8,0),IF($C$6="ja",VLOOKUP($B15,$N$40:$U$278,7,0),"Bitte wählen sie aus, ob sie zum Vorsteuerabzug berechtigt sind!")),"") ->  | H15: =IF($H$14>"",IF(B15>0,IF($C$6="nein",VLOOKUP($B15,$N$40:$AA$272,14,0),IF($C$6="ja",VLOOKUP($B15,$N$40:$AA$272,13,0),"")),""),"") ->  | K15: =IF(B15>0,G15*I15,"") ->  | AI15: =VLOOKUP($B15,N$39:W$278,10,FALSE) -> 
A16: =A15+1 -> 2 | C16: =IF(B16>0,CONCATENATE(VLOOKUP(B16,N40:W278,9,0)," (",VLOOKUP(B16,N40:W278,10,0),")"),"") ->  | D16: =IF($B16>0,IF(Fahrzeuge!$C$6="nein",VLOOKUP($B16,$N$40:$U$278,3,0),IF(Fahrzeuge!$C$6="ja",VLOOKUP($B16,$N$40:$U$278,2,0),"Bitte wählen sie aus, ob sie zum Vorsteuerabzug berechtigt sind!")),"") ->  | F16: =IF($B16>0,IF(Fahrzeuge!$C$6="nein",VLOOKUP($B16,$N$40:$U$278,6,0),IF(Fahrzeuge!$C$6="ja",VLOOKUP($B16,$N$40:$U$278,5,0),"Bitte wählen sie aus, ob sie zum Vorsteuerabzug berechtigt sind!")),"") -> 
A17: =A16+1 -> 3 | C17: =IF(B17>0,CONCATENATE(VLOOKUP(B17,N40:W278,9,0)," (",VLOOKUP(B17,N40:W278,10,0),")"),"") ->  | D17: =IF($B17>0,IF(Fahrzeuge!$C$6="nein",VLOOKUP($B17,$N$40:$U$278,3,0),IF(Fahrzeuge!$C$6="ja",VLOOKUP($B17,$N$40:$U$278,2,0),"Bitte wählen sie aus, ob sie zum Vorsteuerabzug berechtigt sind!")),"") ->  | F17: =IF($B17>0,IF(Fahrzeuge!$C$6="nein",VLOOKUP($B17,$N$40:$U$278,6,0),IF(Fahrzeuge!$C$6="ja",VLOOKUP($B17,$N$40:$U$278,5,0),"Bitte wählen sie aus, ob sie zum Vorsteuerabzug berechtigt sind!")),"") -> 
A18: =A17+1 -> 4 | C18: =IF(B18>0,CONCATENATE(VLOOKUP(B18,N40:W278,9,0)," (",VLOOKUP(B18,N40:W278,10,0),")"),"") ->  | D18: =IF($B18>0,IF(Fahrzeuge!$C$6="nein",VLOOKUP($B18,$N$40:$U$278,3,0),IF(Fahrzeuge!$C$6="ja",VLOOKUP($B18,$N$40:$U$278,2,0),"Bitte wählen sie aus, ob sie zum Vorsteuerabzug berechtigt sind!")),"") ->  | F18: =IF($B18>0,IF(Fahrzeuge!$C$6="nein",VLOOKUP($B18,$N$40:$U$278,6,0),IF(Fahrzeuge!$C$6="ja",VLOOKUP($B18,$N$40:$U$278,5,0),"Bitte wählen sie aus, ob sie zum Vorsteuerabzug berechtigt sind!")),"") -> 
A19: =A18+1 -> 5 | C19: =IF(B19>0,CONCATENATE(VLOOKUP(B19,N40:W278,9,0)," (",VLOOKUP(B19,N40:W278,10,0),")"),"") ->  | D19: =IF($B19>0,IF(Fahrzeuge!$C$6="nein",VLOOKUP($B19,$N$40:$U$278,3,0),IF(Fahrzeuge!$C$6="ja",VLOOKUP($B19,$N$40:$U$278,2,0),"Bitte wählen sie aus, ob sie zum Vorsteuerabzug berechtigt sind!")),"") ->  | F19: =IF($B19>0,IF(Fahrzeuge!$C$6="nein",VLOOKUP($B19,$N$40:$U$278,6,0),IF(Fahrzeuge!$C$6="ja",VLOOKUP($B19,$N$40:$U$278,5,0),"Bitte wählen sie aus, ob sie zum Vorsteuerabzug berechtigt sind!")),"") -> 
A20: =A19+1 -> 6 | C20: =IF(B20>0,CONCATENATE(VLOOKUP(B20,N40:W278,9,0)," (",VLOOKUP(B20,N40:W278,10,0),")"),"") ->  | D20: =IF($B20>0,IF(Fahrzeuge!$C$6="nein",VLOOKUP($B20,$N$40:$U$278,3,0),IF(Fahrzeuge!$C$6="ja",VLOOKUP($B20,$N$40:$U$278,2,0),"Bitte wählen sie aus, ob sie zum Vorsteuerabzug berechtigt sind!")),"") ->  | F20: =IF($B20>0,IF(Fahrzeuge!$C$6="nein",VLOOKUP($B20,$N$40:$U$278,6,0),IF(Fahrzeuge!$C$6="ja",VLOOKUP($B20,$N$40:$U$278,5,0),"Bitte wählen sie aus, ob sie zum Vorsteuerabzug berechtigt sind!")),"") -> 
A21: 7 | C21: =IF(B21>0,CONCATENATE(VLOOKUP(B21,N40:W278,9,0)," (",VLOOKUP(B21,N40:W278,10,0),")"),"") ->  | D21: =IF($B21>0,IF(Fahrzeuge!$C$6="nein",VLOOKUP($B21,$N$40:$U$278,3,0),IF(Fahrzeuge!$C$6="ja",VLOOKUP($B21,$N$40:$U$278,2,0),"Bitte wählen sie aus, ob sie zum Vorsteuerabzug berechtigt sind!")),"") ->  | F21: =IF($B21>0,IF(Fahrzeuge!$C$6="nein",VLOOKUP($B21,$N$40:$U$278,6,0),IF(Fahrzeuge!$C$6="ja",VLOOKUP($B21,$N$40:$U$278,5,0),"Bitte wählen sie aus, ob sie zum Vorsteuerabzug berechtigt sind!")),"") -> 
A22: 8 | C22: =IF(B22>0,CONCATENATE(VLOOKUP(B22,N40:W278,9,0)," (",VLOOKUP(B22,N40:W278,10,0),")"),"") ->  | D22: =IF($B22>0,IF(Fahrzeuge!$C$6="nein",VLOOKUP($B22,$N$40:$U$278,3,0),IF(Fahrzeuge!$C$6="ja",VLOOKUP($B22,$N$40:$U$278,2,0),"Bitte wählen sie aus, ob sie zum Vorsteuerabzug berechtigt sind!")),"") ->  | F22: =IF($B22>0,IF(Fahrzeuge!$C$6="nein",VLOOKUP($B22,$N$40:$U$278,6,0),IF(Fahrzeuge!$C$6="ja",VLOOKUP($B22,$N$40:$U$278,5,0),"Bitte wählen sie aus, ob sie zum Vorsteuerabzug berechtigt sind!")),"") -> 
A23: =A22+1 -> 9 | C23: =IF(B23>0,CONCATENATE(VLOOKUP(B23,N40:W278,9,0)," (",VLOOKUP(B23,N40:W278,10,0),")"),"") ->  | D23: =IF($B23>0,IF(Fahrzeuge!$C$6="nein",VLOOKUP($B23,$N$40:$U$278,3,0),IF(Fahrzeuge!$C$6="ja",VLOOKUP($B23,$N$40:$U$278,2,0),"Bitte wählen sie aus, ob sie zum Vorsteuerabzug berechtigt sind!")),"") ->  | F23: =IF($B23>0,IF(Fahrzeuge!$C$6="nein",VLOOKUP($B23,$N$40:$U$278,6,0),IF(Fahrzeuge!$C$6="ja",VLOOKUP($B23,$N$40:$U$278,5,0),"Bitte wählen sie aus, ob sie zum Vorsteuerabzug berechtigt sind!")),"") -> 
A24: 10 | C24: =IF(B24>0,CONCATENATE(VLOOKUP(B24,N40:W278,9,0)," (",VLOOKUP(B24,N40:W278,10,0),")"),"") ->  | D24: =IF($B24>0,IF(Fahrzeuge!$C$6="nein",VLOOKUP($B24,$N$40:$U$278,3,0),IF(Fahrzeuge!$C$6="ja",VLOOKUP($B24,$N$40:$U$278,2,0),"Bitte wählen sie aus, ob sie zum Vorsteuerabzug berechtigt sind!")),"") ->  | F24: =IF($B24>0,IF(Fahrzeuge!$C$6="nein",VLOOKUP($B24,$N$40:$U$278,6,0),IF(Fahrzeuge!$C$6="ja",VLOOKUP($B24,$N$40:$U$278,5,0),"Bitte wählen sie aus, ob sie zum Vorsteuerabzug berechtigt sind!")),"") -> 
A25: 11 | C25: =IF(B25>0,CONCATENATE(VLOOKUP(B25,N40:W278,9,0)," (",VLOOKUP(B25,N40:W278,10,0),")"),"") ->  | D25: =IF($B25>0,IF(Fahrzeuge!$C$6="nein",VLOOKUP($B25,$N$40:$U$278,3,0),IF(Fahrzeuge!$C$6="ja",VLOOKUP($B25,$N$40:$U$278,2,0),"Bitte wählen sie aus, ob sie zum Vorsteuerabzug berechtigt sind!")),"") ->  | F25: =IF($B25>0,IF(Fahrzeuge!$C$6="nein",VLOOKUP($B25,$N$40:$U$278,6,0),IF(Fahrzeuge!$C$6="ja",VLOOKUP($B25,$N$40:$U$278,5,0),"Bitte wählen sie aus, ob sie zum Vorsteuerabzug berechtigt sind!")),"") -> 
A26: 12 | C26: =IF(B26>0,CONCATENATE(VLOOKUP(B26,N40:W278,9,0)," (",VLOOKUP(B26,N40:W278,10,0),")"),"") ->  | D26: =IF($B26>0,IF(Fahrzeuge!$C$6="nein",VLOOKUP($B26,$N$40:$U$278,3,0),IF(Fahrzeuge!$C$6="ja",VLOOKUP($B26,$N$40:$U$278,2,0),"Bitte wählen sie aus, ob sie zum Vorsteuerabzug berechtigt sind!")),"") ->  | F26: =IF($B26>0,IF(Fahrzeuge!$C$6="nein",VLOOKUP($B26,$N$40:$U$278,6,0),IF(Fahrzeuge!$C$6="ja",VLOOKUP($B26,$N$40:$U$278,5,0),"Bitte wählen sie aus, ob sie zum Vorsteuerabzug berechtigt sind!")),"") -> 
A27: =A26+1 -> 13 | C27: =IF(B27>0,CONCATENATE(VLOOKUP(B27,N40:W278,9,0)," (",VLOOKUP(B27,N40:W278,10,0),")"),"") ->  | D27: =IF($B27>0,IF(Fahrzeuge!$C$6="nein",VLOOKUP($B27,$N$40:$U$278,3,0),IF(Fahrzeuge!$C$6="ja",VLOOKUP($B27,$N$40:$U$278,2,0),"Bitte wählen sie aus, ob sie zum Vorsteuerabzug berechtigt sind!")),"") ->  | F27: =IF($B27>0,IF(Fahrzeuge!$C$6="nein",VLOOKUP($B27,$N$40:$U$278,6,0),IF(Fahrzeuge!$C$6="ja",VLOOKUP($B27,$N$40:$U$278,5,0),"Bitte wählen sie aus, ob sie zum Vorsteuerabzug berechtigt sind!")),"") -> 
A28: 14 | C28: =IF(B28>0,CONCATENATE(VLOOKUP(B28,N40:W278,9,0)," (",VLOOKUP(B28,N40:W278,10,0),")"),"") ->  | D28: =IF($B28>0,IF(Fahrzeuge!$C$6="nein",VLOOKUP($B28,$N$40:$U$278,3,0),IF(Fahrzeuge!$C$6="ja",VLOOKUP($B28,$N$40:$U$278,2,0),"Bitte wählen sie aus, ob sie zum Vorsteuerabzug berechtigt sind!")),"") ->  | F28: =IF($B28>0,IF(Fahrzeuge!$C$6="nein",VLOOKUP($B28,$N$40:$U$278,6,0),IF(Fahrzeuge!$C$6="ja",VLOOKUP($B28,$N$40:$U$278,5,0),"Bitte wählen sie aus, ob sie zum Vorsteuerabzug berechtigt sind!")),"") -> 
A29: 15 | C29: =IF(B29>0,CONCATENATE(VLOOKUP(B29,N40:W278,9,0)," (",VLOOKUP(B29,N40:W278,10,0),")"),"") ->  | D29: =IF($B29>0,IF(Fahrzeuge!$C$6="nein",VLOOKUP($B29,$N$40:$U$278,3,0),IF(Fahrzeuge!$C$6="ja",VLOOKUP($B29,$N$40:$U$278,2,0),"Bitte wählen sie aus, ob sie zum Vorsteuerabzug berechtigt sind!")),"") ->  | F29: =IF($B29>0,IF(Fahrzeuge!$C$6="nein",VLOOKUP($B29,$N$40:$U$278,6,0),IF(Fahrzeuge!$C$6="ja",VLOOKUP($B29,$N$40:$U$278,5,0),"Bitte wählen sie aus, ob sie zum Vorsteuerabzug berechtigt sind!")),"") -> 
A30: 16 | C30: =IF(B30>0,CONCATENATE(VLOOKUP(B30,N40:W278,9,0)," (",VLOOKUP(B30,N40:W278,10,0),")"),"") ->  | D30: =IF($B30>0,IF(Fahrzeuge!$C$6="nein",VLOOKUP($B30,$N$40:$U$278,3,0),IF(Fahrzeuge!$C$6="ja",VLOOKUP($B30,$N$40:$U$278,2,0),"Bitte wählen sie aus, ob sie zum Vorsteuerabzug berechtigt sind!")),"") ->  | F30: =IF($B30>0,IF(Fahrzeuge!$C$6="nein",VLOOKUP($B30,$N$40:$U$278,6,0),IF(Fahrzeuge!$C$6="ja",VLOOKUP($B30,$N$40:$U$278,5,0),"Bitte wählen sie aus, ob sie zum Vorsteuerabzug berechtigt sind!")),"") -> 
A31: =A30+1 -> 17 | C31: =IF(B31>0,CONCATENATE(VLOOKUP(B31,N40:W278,9,0)," (",VLOOKUP(B31,N40:W278,10,0),")"),"") ->  | D31: =IF($B31>0,IF(Fahrzeuge!$C$6="nein",VLOOKUP($B31,$N$40:$U$278,3,0),IF(Fahrzeuge!$C$6="ja",VLOOKUP($B31,$N$40:$U$278,2,0),"Bitte wählen sie aus, ob sie zum Vorsteuerabzug berechtigt sind!")),"") ->  | F31: =IF($B31>0,IF(Fahrzeuge!$C$6="nein",VLOOKUP($B31,$N$40:$U$278,6,0),IF(Fahrzeuge!$C$6="ja",VLOOKUP($B31,$N$40:$U$278,5,0),"Bitte wählen sie aus, ob sie zum Vorsteuerabzug berechtigt sind!")),"") -> 
A32: =A31+1 -> 18 | C32: =IF(B32>0,CONCATENATE(VLOOKUP(B32,N40:W278,9,0)," (",VLOOKUP(B32,N40:W278,10,0),")"),"") ->  | D32: =IF($B32>0,IF(Fahrzeuge!$C$6="nein",VLOOKUP($B32,$N$40:$U$278,3,0),IF(Fahrzeuge!$C$6="ja",VLOOKUP($B32,$N$40:$U$278,2,0),"Bitte wählen sie aus, ob sie zum Vorsteuerabzug berechtigt sind!")),"") ->  | F32: =IF($B32>0,IF(Fahrzeuge!$C$6="nein",VLOOKUP($B32,$N$40:$U$278,6,0),IF(Fahrzeuge!$C$6="ja",VLOOKUP($B32,$N$40:$U$278,5,0),"Bitte wählen sie aus, ob sie zum Vorsteuerabzug berechtigt sind!")),"") ->  | N32: Aktuelle Preise
A33: =A32+1 -> 19 | C33: =IF(B33>0,CONCATENATE(VLOOKUP(B33,N40:W278,9,0)," (",VLOOKUP(B33,N40:W278,10,0),")"),"") ->  | D33: =IF($B33>0,IF(Fahrzeuge!$C$6="nein",VLOOKUP($B33,$N$40:$U$278,3,0),IF(Fahrzeuge!$C$6="ja",VLOOKUP($B33,$N$40:$U$278,2,0),"Bitte wählen sie aus, ob sie zum Vorsteuerabzug berechtigt sind!")),"") ->  | F33: =IF($B33>0,IF(Fahrzeuge!$C$6="nein",VLOOKUP($B33,$N$40:$U$278,6,0),IF(Fahrzeuge!$C$6="ja",VLOOKUP($B33,$N$40:$U$278,5,0),"Bitte wählen sie aus, ob sie zum Vorsteuerabzug berechtigt sind!")),"") ->  | N33: Alte Preise
A34: =A33+1 -> 20 | C34: =IF(B34>0,CONCATENATE(VLOOKUP(B34,N40:W278,9,0)," (",VLOOKUP(B34,N40:W278,10,0),")"),"") ->  | D34: =IF($B34>0,IF(Fahrzeuge!$C$6="nein",VLOOKUP($B34,$N$40:$U$278,3,0),IF(Fahrzeuge!$C$6="ja",VLOOKUP($B34,$N$40:$U$278,2,0),"Bitte wählen sie aus, ob sie zum Vorsteuerabzug berechtigt sind!")),"") ->  | F34: =IF($B34>0,IF(Fahrzeuge!$C$6="nein",VLOOKUP($B34,$N$40:$U$278,6,0),IF(Fahrzeuge!$C$6="ja",VLOOKUP($B34,$N$40:$U$278,5,0),"Bitte wählen sie aus, ob sie zum Vorsteuerabzug berechtigt sind!")),"") ->  | N34: Neue Fragen
A35: Summe | E35: =IF($B35>0,VLOOKUP($B35,$N$59:$U$199,5,0),"") ->  | G35: =IF(B35>0,IF($C$6="nein",VLOOKUP($B35,$N$59:$U$199,9,0),IF($C$6="ja",VLOOKUP($B35,$N$59:$U$199,8,0),"Bitte wählen sie aus, ob sie zum Vorsteuerabzug berechtigt sind!")),"") ->  | I35: =IF(COUNTA(B15:B34)=COUNTA(I15:I34),"","Angabe zu Anzahl fehlt") ->  | J35: =IFERROR("Ø: "&TEXT(SUMPRODUCT(I15:I34,J15:J34)/SUM(I15:I34),"#.##0"),"") ->  | K35: =IF(SUM(K15:K34)>0,SUM(K15:K34),"") -> 
B37: =IF(C7>0, IF(C7="nein","","* Bei Beantragung von Fahrzeugsegmenten erfolgt die Abrechnung nach den Pauschalwerten des tatsächlich beschafften Fahrzeugs!"),"") -> 
B38: =IF(H14>"","* Die Informationsspalte zum Umweltbonus zeigt, auf welche förderfähigen Mehrkosten sich unsere Förderung bezieht, sofern sie selbst den Umweltbonus beantragen. (siehe FAQ Frage 24)","") -> 
N39: E-Fahrzeug | O39: E-Listenpreis netto | P39: E-Listenpreis brutto | Q39: Vergleichsfahrzeug | R39: Listenpreis netto | S39: Listenpreis brutto | T39: förderfähig netto | U39: förderfähig brutto | V39: Info Segment | W39: Fahrzeugklassen Abkürzung | X39: ergänzt am: | Y39: BAFA | Z39: förderfähig netto abzgl. BaFa | AA39: förderfähig brutto abzgl. BaFa | AB39: Kommentar | AF39: Ausschreibung? | AG39: =IF(Fahrzeuge!$C$7>0,IF(Fahrzeuge!$C$7="ja","ja","nein"),"") -> nein
M40: Änderung Name zu 500e am 17.04.24 | N40: Abarth 500e | O40: =ROUND(P40/1.19,2) -> 36134.45 | P40: 43000 | Q40: Abarth 595 | R40: =ROUND(S40/1.19,2) -> 23521.01 | S40: 27990 | T40: =IF(O40-R40>=0,ROUND(O40-R40,0),0) -> 12613 | U40: 15010 | V40: Kleinwagen | W40: PKW
N41: AIWAYS U5 (alle Versionen) | O41: 33250 | P41: 39567.5 | Q41: VW Tiguan Life 1.5 TSI OPF 6 Gang 110 kW | R41: 30159.66 | S41: 35890 | T41: 3090 | U41: 3678 | V41: Geländewagen / SUV | W41: PKW
N42: Aixam eCity (alle Versionen) | O42: 14445.38 | P42: 17190 | Q42: Aixam City Pack | R42: 10075.63 | S42: 11990 | T42: 4370 | U42: 5200 | V42: Leichtfahrzeug | W42: LFZ
N43: Alfa Romeo Junior Elettrica (alle Versionen) | O43: 33193.28 | P43: 39500 | Q43: Alfa Romeo Junior Ibrida | R43: 24789.92 | S43: 29500 | T43: 8403 | U43: 10000 | V43: Geländewagen / SUV | W43: PKW | X43: 2024-04-17
M44: L2e | N44: ARI 345 | O44: 6995 | P44: =6995*1.19 -> 8324.05 | Q44: Kymco Maxxer S300 T ONROAD LOF (Quad) | R44: 4957.14 | S44: 5899 | T44: 2038 | U44: 2425 | V44: Leichtfahrzeug | W44: LFZ | X44: 2023-03-17
M45: L6e (45 km/h) | N45: ARI 252 / 452 | O45: 9999 | P45: =9999*1.19 -> 11898.81 | Q45: Aixam Minauto Access | R45: 8394.96 | S45: 9990 | T45: 1604 | U45: 1909 | V45: Leichtfahrzeug | W45: LFZ | X45: 2023-03-17
M46: L7e | N46: ARI 458 (150 km) | O46: 17690 | P46: =(14790+2900)*1.19 -> 21051.1 | Q46: Aixam D-Truck Pritsche | R46: 13100.84 | S46: 15590 | T46: 4589 | U46: 5461 | V46: Leichtfahrzeug | W46: LFZ | X46: 2023-03-17
M47: L7e | N47: ARI 458 (200 km) | O47: 18690 | P47: =(14790+3900)*1.19 -> 22241.1 | Q47: Aixam D-Truck Pritsche | R47: 13100.84 | S47: 15590 | T47: 5589 | U47: 6651 | V47: Leichtfahrzeug | W47: LFZ | X47: 2023-03-17
M48: L7e | N48: ARI 802 (150 km) | O48: 13899 | P48: =(10999+2900)*1.19 -> 16539.81 | Q48: Aixam City Pack | R48: 10075.63 | S48: 11990 | T48: 3823 | U48: 4550 | V48: Leichtfahrzeug | W48: LFZ | X48: 2023-03-17
M49: L7e | N49: ARI 802 (200 km) | O49: 14899 | P49: =(10999+3900)*1.19 -> 17729.81 | Q49: Aixam City Pack | R49: 10075.63 | S49: 11990 | T49: 4823 | U49: 5740 | V49: Leichtfahrzeug | W49: LFZ | X49: 2023-03-17
M50: L7e | N50: ARI 902 (9,5 kWh) | O50: 13990 | P50: =13990*1.19 -> 16648.1 | Q50: Aixam City Pack | R50: 10075.63 | S50: 11990 | T50: 3914 | U50: 4658 | V50: Leichtfahrzeug | W50: LFZ | X50: 2023-03-17
M51: L7e | N51: ARI 902 (10,35 kWh) | O51: 14980 | P51: =(13990+990)*1.19 -> 17826.2 | Q51: Aixam City Pack | R51: 10075.63 | S51: 11990 | T51: 4904 | U51: 5836 | V51: Leichtfahrzeug | W51: LFZ | X51: 2023-03-17
M52: L7e | N52: ARI 902 (18 kWh) | O52: 15960 | P52: =(13990+1970)*1.19 -> 18992.4 | Q52: Aixam City Pack | R52: 10075.63 | S52: 11990 | T52: 5884 | U52: 7002 | V52: Leichtfahrzeug | W52: LFZ | X52: 2023-03-17
N53: Audi Q4 e-tron 55 kWh MJ 2025 (alle Versionen) | O53: 38319.33 | P53: 45600 | Q53: Audi Q3 35 TFSI 6-Gang 110 kW | R53: 31638.66 | S53: 37650 | T53: 6681 | U53: 7950 | V53: Geländewagen / SUV | W53: PKW | X53: 2024-07-19
M54: Änderung 25.01.2024 | N54: Audi Q4 e-tron 82 kWh (alle Versionen) | O54: 43613.45 | P54: 51900 | Q54: Audi Q3 35 TFSI 6-Gang 110 kW | R54: 31638.66 | S54: 37650 | T54: 11975 | U54: 14250 | V54: Geländewagen / SUV | W54: PKW
N55: Audi Q6 e-tron 83 kWh (alle Versionen) | O55: =ROUND(P55/1.19,2) -> 53361.34 | P55: 63500 | Q55: Audi Q5 advanced 45 TFSI quattro S tronic | R55: =ROUND(S55/1.19,2) -> 50588.24 | S55: 60200 | T55: =IF(O55-R55>=0,ROUND(O55-R55,0),0) -> 2773 | U55: =IF(P55-S55>=0,ROUND(P55-S55,0),0) -> 3300 | V55: Geländewagen / SUV | W55: PKW | X55: 2024-08-22
N56: Audi Q6 e-tron 100 kWh (alle Versionen) | O56: 62773.11 | P56: 74700 | Q56: Audi Q5 advanced 45 TFSI quattro S tronic | R56: 50588.24 | S56: 60200 | T56: 12185 | U56: 14500 | V56: Geländewagen / SUV | W56: PKW | X56: 2024-04-03
M57: Änderung 25.01.2024 | N57: Audi Q8 e-tron 50 quattro 89 kWh (alle Versionen) | O57: 62521.01 | P57: 74400 | Q57: Audi A6 allroad quattro 45 TDI 180 kW | R57: 55966.39 | S57: 66600 | T57: 6555 | U57: 7800 | V57: Geländewagen / SUV | W57: PKW
N58: Audi Q8 e-tron 55 quattro (alle Versionen) | O58: nicht förderfähig gemäß Aufruf | P58: nicht förderfähig gemäß Aufruf | R58: 0 | S58: 0 | V58: Geländewagen / SUV | W58: PKW
N59: Audi e-tron GT (alle Versionen) | O59: nicht förderfähig gemäß FRL | P59: nicht förderfähig gemäß Aufruf | R59: 0 | S59: 0 | V59: Oberklasse | W59: PKW
N60: BMW i4 eDrive35 67 kWh (alle Versionen) | O60: =ROUND(P60/1.19,2) -> 47478.99 | P60: 56500 | Q60: BMW 420i Gran Coupé | R60: 43193.28 | S60: 51400 | T60: =IF(O60-R60>=0,ROUND(O60-R60,0),0) -> 4286 | U60: 5100 | V60: Mittelklasse | W60: PKW
N61: BMW i4 eDrive40 80,7 kWh (alle Versionen) | O61: =ROUND(P61/1.19,2) -> 49747.9 | P61: 59200 | Q61: BMW 420i Gran Coupé | R61: =ROUND(S61/1.19,2) -> 43193.28 | S61: 51400 | T61: =IF(O61-R61>=0,ROUND(O61-R61,0),0) -> 6555 | U61: =IF(P61-S61>=0,ROUND(P61-S61,0),0) -> 7800 | V61: Mittelklasse | W61: PKW | X61: 2025-02-07
N62: BMW i5 (alle Versionen) | O62: =ROUND(P62/1.19,2) -> 58991.6 | P62: 70200 | Q62: BMW 520d | R62: 50210.08 | S62: 59750 | T62: 8782 | U62: 10450 | V62: Mittelklasse | W62: PKW | X62: 2024-02-23
N63: BMW i7 (alle Versionen) | O63: nicht förderfähig gemäß FRL | P63: nicht förderfähig gemäß Aufruf | R63: =ROUND(S63/1.19,2) -> 0 | S63: 0 | V63: Oberklasse | W63: PKW
N64: BMW iX1 (alle Versionen) | O64: =ROUND(P64/1.19,2) -> 46218.49 | P64: 55000 | Q64: BMW X1 xDrive20d | R64: 40714.29 | S64: 48450 | T64: 5504 | U64: 6550 | V64: Geländewagen / SUV | W64: PKW
N65: BMW iX2 (alle Versionen) | O65: =ROUND(P65/1.19,2) -> 47478.99 | P65: 56500 | Q65: BMW X2 xDrive20d | R65: 41974.79 | S65: 49950 | T65: 5504 | U65: 6550 | V65: Geländewagen / SUV | W65: PKW | X65: 2024-02-14
N66: BMW iX3 (alle Versionen) | O66: =ROUND(P66/1.19,2) -> 56554.62 | P66: 67300 | Q66: BMW X3 xDrive20d | R66: 49243.7 | S66: 58600 | T66: 7311 | U66: 8700 | V66: Geländewagen / SUV | W66: PKW
N67: BMW iX (alle Versionen) | O67: =ROUND(P67/1.19,2) -> 64957.98 | P67: 77300 | Q67: BMW X5 xDrive30d | R67: 72521.01 | S67: 86300 | T67: 0 | U67: 0 | V67: Geländewagen / SUV | W67: PKW
M68: zuordnung Fzg-kl. Am 21.02.2024 geändert | N68: BYD Atto 3 (alle Versionen) | O68: =ROUND(P68/1.19,2) -> 37500 | P68: 44625 | Q68: Mazda CX 5 | R68: 25201.68 | S68: =ROUND(25201.68*1.19,2) -> 29990 | T68: 12298 | U68: 14635 | V68: Geländewagen / SUV | W68: PKW | X68: 2023-03-16
N69: BYD Dolphin 60,4 kWh (alle Versionen) | O69: 27722.69 | P69: 32990 | Q69: Peugeot 308 PureTech 130 | R69: 26260.5 | S69: 31250 | T69: 1462 | U69: 1740 | V69: Kompaktklasse | W69: PKW | X69: 2024-02-15
N70: BYD Han (alle Versionen) | O70: 59500 | P70: =ROUND(59500*1.19,2) -> 70805 | Q70: Mercedes Benz E 300 d 4MATIC | R70: 51565 | S70: 61362.35 | T70: 7935 | U70: 9443 | V70: Mittelklasse | W70: PKW | X70: 2023-03-16
N71: BYD Seal (alle Versionen) | O71: 37806.72 | P71: 44990 | Q71: Opel Insignia 90 kW | R71: 32142.86 | S71: 38250 | T71: 5664 | U71: 6740 | V71: Mittelklasse | W71: PKW
N72: BYD Seal U 71,8 kWh (alle Versionen) | O72: 35285.71 | P72: 41990 | Q72: BYD Seal U DM-i | R72: 32689.08 | S72: 38900 | T72: 2597 | U72: 3090 | V72: Geländewagen / SUV | W72: PKW | X72: 2024-07-16
N73: BYD Seal U 87 kWh (alle Versionen) | O73: 37806.72 | P73: 44990 | Q73: BYD Seal U DM-i | R73: 32689.08 | S73: 38900 | T73: 5118 | U73: 6090 | V73: Geländewagen / SUV | W73: PKW | X73: 2024-07-16
N74: BYD Tang (alle Versionen) | O74: 60000 | P74: =ROUND(60000*1.19,2) -> 71400 | Q74: Toyota Land Cruiser (7-Sitzer) | R74: 47705.88 | S74: 56770 | T74: 12294 | U74: 14630 | V74: Geländewagen / SUV | W74: PKW | X74: 2023-03-16
N75: Cenntro Metro (13 kWh), L7e | O75: 21176.47 | P75: 25200 | Q75: Aixam D-Truck Pritsche | R75: 13100.84 | S75: 15590 | T75: 8076 | U75: 9610 | V75: Leichtfahrzeug | W75: LFZ | X75: 2023-04-11
N76: CITROËN AMI (alle Versionen) | O76: 6714.29 | P76: 7990 | Q76: Kymco Maxxer S300 T ONROAD LOF (Quad) | R76: 4957.14 | S76: 5899 | T76: 1757 | U76: 2091 | V76: Leichtfahrzeug | W76: LFZ | X76: 2024-07-15
N77: CITROËN ë-Berlingo (nur M1-Versionen) | O77: 31756.3 | P77: 37790 | Q77: Citroën Berlingo MPV | R77: 21184.87 | S77: 25210 | T77: =IF(O77-R77>=0,ROUND(O77-R77,0),0) -> 10571 | U77: 12580 | V77: Großraum-Van | W77: PKW
N78: CITROËN ë-C3 (alle Versionen) | O78: 19579.83 | P78: 23300 | Q78: CITROËN C3 PureTech 83 | R78: 10831.93 | S78: 12890 | T78: 8748 | U78: 10410 | V78: Kleinwagen | W78: PKW | X78: 2024-02-14
N79: CITROËN ë-C4 (alle Versionen) | O79: 31546.22 | P79: 37540 | Q79: CITROËN C4 PureTech 130 6-Gang | R79: 22403.36 | S79: 26660 | T79: 9143 | U79: 10880 | V79: Kompaktklasse | W79: PKW
N80: CITROËN ë-SpaceTourer 50kWh (nur M1-Versionen) | O80: 45075.63 | P80: 53640 | Q80: Toyota Proace Verso 106 kW, L1-Version | R80: 44302.52 | S80: 52720 | T80: 773 | U80: 920 | V80: Großraum-Van | W80: PKW
N81: CITROËN ë-SpaceTourer 75kWh (nur M1-Versionen) | O81: 50117.65 | P81: 59640 | Q81: Toyota Proace Verso 106 kW, L1-Version | R81: 44302.52 | S81: 52720 | T81: 5815 | U81: 6920 | V81: Großraum-Van | W81: PKW
N82: CITROËN ë-Jumpy Kombi 50kWh (nur M1-Versionen) | O82: 42176.47 | P82: 50190 | Q82: Citroen Jumpy Kombi (alle M-Versionen) | R82: 33605.04 | S82: 39990 | T82: 8571 | U82: 10200 | V82: Großraum-Van | W82: PKW
N83: CITROËN ë-Jumpy Kombi 75kWh (nur M1-Versionen) | O83: 47218.49 | P83: 56190 | Q83: Citroen Jumpy Kombi (alle M-Versionen) | R83: 33605.04 | S83: 39990 | T83: 13613 | U83: 16200 | V83: Großraum-Van | W83: PKW
N84: CUPRA born 58kWh (alle Versionen) | O84: 32579.83 | P84: 38770 | Q84: Seat Leon FR 110 kW | R84: 25075.63 | S84: 29840 | T84: 7504 | U84: 8930 | V84: Kompaktklasse | W84: PKW
N85: CUPRA born 77kWh (alle Versionen) | O85: 38529.41 | P85: 45850 | Q85: Seat Leon FR 110 kW | R85: 25075.63 | S85: 29840 | T85: 13454 | U85: 16010 | V85: Kompaktklasse | W85: PKW
N86: CUPRA TAVASCAN 77 kWh (alle Versionen) | O86: 47235.29 | P86: 56210 | Q86: CUPRA Ateca 140 kW | R86: 39949.58 | S86: 47540 | T86: 7286 | U86: 8670 | V86: Geländewagen / SUV | W86: PKW | X86: 2024-07-15
N87: Dacia Spring (alle Versionen) | O87: 19117.65 | P87: 22750 | Q87: Dacia Sandero Stepway | R87: 12100.84 | S87: 14400 | T87: 7017 | U87: 8350 | V87: Mini | W87: PKW
N88: DS 3 E-TENSE (alle Versionen) | O88: 38268.91 | P88: 45540 | Q88: DS 3 BASTILLE | R88: 29445.38 | S88: 35040 | T88: 8824 | U88: 10500 | V88: Kleinwagen | W88: PKW
N89: DS 8 Pallas (alle Versionen) 73,7 kWh | O89: 48487.39 | P89: 57700 | Q89: DS 7 Blue Hdi Pallas 96 kW | R89: 40134.45 | S89: 47760 | T89: 8353 | U89: 9940 | V89: Mittelklasse | W89: PKW | X89: 2025-02-07
N90: DS 8 Pallas (alle Versionen) 97,2 kWh | O90: 53109.24 | P90: 63200 | Q90: DS 7 Blue Hdi Pallas 96 kW | R90: =ROUND(S90/1.19,2) -> 40134.45 | S90: 47760 | T90: =IF(O90-R90>=0,ROUND(O90-R90,0),0) -> 12975 | U90: =IF(P90-S90>=0,ROUND(P90-S90,0),0) -> 15440 | V90: Mittelklasse | W90: PKW | X90: 2025-02-07
N91: Elaris BEO (alle Versionen) | O91: 36739.5 | P91: =39220+4500 -> 43720 | Q91: VW Tiguan Life 1.5 TSI OPF 6 Gang 110 kW | R91: 31121.85 | S91: 37035 | T91: 5618 | U91: 6685 | V91: Geländewagen / SUV | W91: PKW
N92: Elaris DYO (alle Versionen) | O92: 17924.37 | P92: =16830+4500 -> 21330 | Q92: Ligier JS60 CHIC | R92: 14284.87 | S92: 16999 | T92: 3640 | U92: 4331 | V92: Mini | W92: PKW
N93: Elaris PIO (alle Versionen) | O93: 15403.36 | P93: =13830+4500 -> 18330 | Q93: Ligier JS50 Club | R93: 11344.54 | S93: 13500 | T93: 4059 | U93: 4830 | V93: Mini | W93: PKW
M94: zuordnung Fzg-kl. Am 21.02.2024 geändert | N94: Fiat 500 elektro 23,8 kWh (alle Versionen) | O94: 26042.02 | P94: 30990 | Q94: Fiat 500 Hybrid | R94: 14277.31 | S94: 16990 | T94: 11765 | U94: 14000 | V94: Mini | W94: PKW
M95: zuordnung Fzg-kl. Am 21.02.2024 geändert | N95: Fiat 500 elektro 42,0 kWh (alle Versionen) | O95: 29403.36 | P95: 34990 | Q95: Fiat 500 Hybrid | R95: 14277.31 | S95: 16990 | T95: 15126 | U95: 18000 | V95: Mini | W95: PKW
N96: Fiat 600 e 54 kWh (alle Versionen) | O96: 30663.87 | P96: 36490 | Q96: Fiat 600 Hybrid | R96: 21000 | S96: 24990 | T96: 9664 | U96: 11500 | V96: Kompaktklasse | W96: PKW | X96: 2024-02-14
N97: Fiat E-Doblò (nur M1 Versionen) | O97: 31550 | P97: 37544.5 | Q97: Fiat Doblò | R97: 21100 | S97: 25109 | T97: 10450 | U97: 12436 | V97: Großraum-Van | W97: PKW
N98: Fiat E-Ulysse 50 kWh (nur M1-Versionen) | O98: 52932.77 | P98: 62990 | Q98: Toyota Proace Verso 106 kW, L1-Version | R98: 44302.52 | S98: 52720 | T98: 8630 | U98: 10270 | V98: Großraum-Van | W98: PKW
N99: Fiat E-Ulysse 75 kWh (nur M1-Versionen) | O99: 57974.79 | P99: 68990 | Q99: Toyota Proace Verso 106 kW, L1-Version | R99: 44302.52 | S99: 52720 | T99: 13672 | U99: 16270 | V99: Großraum-Van | W99: PKW
N100: Fiat Grande Panda Elektro (alle Versionen) | O100: 21000 | P100: 24990 | Q100: Fiat Grande Panda Hybrid | R100: 15957.98 | S100: 18990 | T100: 5042 | U100: 6000 | V100: Kleinwagen | W100: PKW | X100: 2025-02-03
N101: Fiat Topolino (alle Versionen) | O101: 8310.92 | P101: 9890 | Q101: Kymco Maxxer S300 T ONROAD LOF (Quad) | R101: 4957.14 | S101: 5899 | T101: 3354 | U101: 3991 | V101: Leichtfahrzeug | W101: LFZ | X101: 2024-07-15
N102: Fisker Ocean 75 kWh (alle Versionen) | O102: 34923.95 | P102: =38882+(ROUND(2250*1.19,2)) -> 41559.5 | Q102: VW Tiguan Allspace Life 1.5 TSI | R102: 34176.47 | S102: 40670 | T102: 747 | U102: 890 | V102: Geländewagen / SUV | W102: PKW
N103: Fisker Ocean 100 kWh (alle Versionen) | O103: 47899.58 | P103: =54323+(ROUND(2250*1.19,2)) -> 57000.5 | Q103: VW Tiguan Allspace Life 2.0 TSI 4 MOTION | R103: 39953.78 | S103: 47545 | T103: 7946 | U103: 9456 | V103: Geländewagen / SUV | W103: PKW
N104: Ford Capri (alle Versionen) | O104: 42782.35 | P104: 50911 | Q104: Ford Kuga 110 kW, 6-Gang | R104: 33571.43 | S104: 39950 | T104: 9211 | U104: 10961 | V104: Geländewagen / SUV | W104: PKW | X104: 2024-07-15
N105: Ford Explorer EV Standard Range (alle Versionen) | O105: 35714.29 | P105: 42500 | Q105: Ford Kuga 110 kW, 6-Gang | R105: =ROUND(S105/1.19,2) -> 33571.43 | S105: 39950 | T105: =IF(O105-R105>=0,ROUND(O105-R105,0),0) -> 2143 | U105: =IF(P105-S105>=0,ROUND(P105-S105,0),0) -> 2550 | V105: Geländewagen / SUV | W105: PKW | X105: 2024-08-16
N106: Ford Explorer EV Extended Range (alle Versionen) | O106: 41596.64 | P106: 49500 | Q106: Ford Kuga 110 kW, 6-Gang | R106: 33571.43 | S106: 39950 | T106: 8025 | U106: 9550 | V106: Geländewagen / SUV | W106: PKW | X106: 2024-03-26
M107: laut KBA Sportwagen | N107: Ford Mustang Mach-E Standard Range 75,7 kWh (alle Versionen) | O107: 52857.14 | P107: 62900 | Q107: Ford Mustang GT | R107: 46638.66 | S107: 55500 | T107: 6218 | U107: 7400 | V107: Geländewagen / SUV | W107: PKW
M108: laut KBA Sportwagen | N108: Ford Mustang Mach-E Extended Range 98,7 kWh (alle Versionen) | O108: 59831.93 | P108: 71200 | Q108: Ford Mustang GT | R108: 46638.66 | S108: 55500 | T108: 13193 | U108: 15700 | V108: Geländewagen / SUV | W108: PKW
N109: Ford Puma Gen-E | O109: 31008.4 | P109: 36900 | Q109: Ford Puma | R109: 24285.71 | S109: 28900 | T109: 6723 | U109: 8000 | V109: Kleinwagen | W109: PKW | X109: 2025-02-07
M110: Bezeichnung geändert | N110: Ford Tourneo Custom Bus 82,5 kWh (alle M1-Versionen) | O110: 56150 | P110: 66818.5 | Q110: Ford Tourneo Custom Bus | R110: 42850 | S110: 50991.5 | T110: 13300 | U110: 15827 | V110: Großraum-Van | W110: PKW | X110: 2024-02-14
N111: Ford Transit Custom Kombi PKW 82,5 kWh (nur M1-Versionen) | O111: 49800 | P111: 59262 | Q111: Ford Transit Custom Kombi PKW | R111: =ROUND(S111/1.19,2) -> 41050 | S111: 48849.5 | T111: 8750 | U111: 10413 | V111: Großraum-Van | W111: PKW | X111: 2024-08-21
N112: Genesis GV60 (alle Versionen) | O112: 53109.24 | P112: 63200 | Q112: Hyundai Tucson Allrad, 169 kW (Prime) | R112: =ROUND(S112/1.19,2) -> 40361.34 | S112: 48030 | T112: 12748 | U112: 15170 | V112: Geländewagen / SUV | W112: PKW
N113: Genesis ELECTRIFIED GV70 (alle Versionen) | O113: 56554.62 | P113: 67300 | Q113: Genesis GV70 Sport | R113: 43739.5 | S113: 52050 | T113: 12815 | U113: 15250 | V113: Geländewagen / SUV | W113: PKW
N114: Genesis ELECTRIFIED G80 (alle Versionen) | O114: 60672.27 | P114: 72200 | Q114: Genesis G80 Luxury | R114: 49899.16 | S114: 59380 | T114: 10773 | U114: 12820 | V114: Mittelklasse | W114: PKW
N115: Goupil G2 5,2 kWh L7e (alle Versionen) | O115: 22456.04 | P115: =ROUND(22456.04*1.19,2) -> 26722.69 | Q115: Aixam D-Truck Pritsche | R115: 13100.84 | S115: 15590 | T115: 9355 | U115: 11133 | V115: Leichtfahrzeug | W115: LFZ | X115: 2023-04-11
N116: Goupil G2 8,6 kWh L7e (alle Versionen) | O116: 24933.38 | P116: =ROUND(24933.38*1.19,2) -> 29670.72 | Q116: Aixam D-Truck Pritsche | R116: 13100.84 | S116: 15590 | T116: 11833 | U116: 14081 | V116: Leichtfahrzeug | W116: LFZ | X116: 2023-04-11
N117: Goupil G4 9 kWh L7e (alle Versionen) | O117: 36235.1 | P117: =ROUND(36235.1*1.19,2) -> 43119.77 | Q117: Piaggio Porter SR LPG | R117: 18600 | S117: 22134 | T117: 17635 | U117: 20986 | V117: Leichtfahrzeug | W117: LFZ | X117: 2023-04-11
N118: Goupil G4 13,8 kWh L7e (alle Versionen) | O118: 41098.1 | P118: =ROUND(41098.1*1.19,2) -> 48906.74 | Q118: Piaggio Porter SR LPG | R118: 18600 | S118: 22134 | T118: 22498 | U118: 26773 | V118: Leichtfahrzeug | W118: LFZ | X118: 2023-04-11
M119: Bezeichnung geändert 19.02.2024 | N119: GWM Ora 03 300 48 kWh (ehem. Funky Cat, alle Versionen) | O119: 32764.71 | P119: 38990 | Q119: VW Golf Life 1.5 TSI OPF 6-Gang 110 kW | R119: 26907.56 | S119: 32020 | T119: 5857 | U119: 6970 | V119: Kompaktklasse | W119: PKW | X119: 2023-03-17
M120: Bezeichnung geändert 19.02.2024 | N120: GWM Ora 03 400 63 kWh (ehem. Funky Cat, alle Versionen) | O120: 37386.55 | P120: 44490 | Q120: VW Golf Life 1.5 TSI OPF 6-Gang 110 kW | R120: 26907.56 | S120: 32020 | T120: 10479 | U120: 12470 | V120: Kompaktklasse | W120: PKW | X120: 2023-03-17
N121: GWM Ora 07 67 kWh (alle Versionen) | O121: 35285.71 | P121: 41990 | Q121: Peugeot 408 100 kW | R121: 32605.04 | S121: 38800 | T121: 2681 | U121: =IF(P121-S121>=0,ROUND(P121-S121,0),0) -> 3190 | V121: Kompaktklasse | W121: PKW | X121: 2024-07-30
N122: GWM Ora 07 86 kWh (alle Versionen) | O122: 44949.58 | P122: 53490 | Q122: Peugeot 408 100 kW | R122: 32605.04 | S122: 38800 | T122: =IF(O122-R122>=0,ROUND(O122-R122,0),0) -> 12345 | U122: 14690 | V122: Kompaktklasse | W122: PKW | X122: 2024-07-30
M123: zuordnung Fzg-kl. Am 21.02.2024 geändert | N123: Honda e (alle Versionen) | O123: 33529.41 | P123: 39900 | Q123: Honda Jazz 1.5 i-MMD 80 kW | R123: 20042.02 | S123: 23850 | T123: 13487 | U123: 16050 | V123: Kleinwagen | W123: PKW
N124: Honda e:Ny1 68,8 kWh (alle Versionen) | O124: 39991.6 | P124: 47590 | Q124: Honda HR-V | R124: 30252.1 | S124: 36000 | T124: 9740 | U124: 11590 | V124: Geländewagen / SUV | W124: PKW | X124: 2024-02-14
N125: Hyundai Inster 42 kWh (alle Versionen) | O125: 20084.03 | P125: 23900 | Q125: Hyundai i10, 1.0 Select, 46 kW | R125: 14277.31 | S125: 16990 | T125: 5807 | U125: 6910 | V125: Kleinwagen | W125: PKW | X125: 2025-01-14
N126: Hyundai Inster 49 kWh (alle Versionen) | O126: 21344.54 | P126: 25400 | Q126: Hyundai i10, 1.0 Select, 46 kW | R126: 14277.31 | S126: 16990 | T126: 7067 | U126: 8410 | V126: Kleinwagen | W126: PKW | X126: 2025-01-14
N127: Hyundai IONIQ Elektro 38,3 kWh (alle Versionen) | O127: 29705.88 | P127: 35350 | Q127: Hyundai i30 5T 1.5 T­GDI, 6­Gang, 118 kW | R127: 22462.18 | S127: 26730 | T127: 7244 | U127: 8620 | V127: Kompaktklasse | W127: PKW
N128: Hyundai IONIQ 5 58 kWh (alle Versionen) | O128: 36890.76 | P128: 43900 | Q128: Hyundai Tucson 48 V 1.6 T-GDI, 110 kW | R128: 26647.06 | S128: 31710 | T128: 10244 | U128: 12190 | V128: Geländewagen / SUV | W128: PKW
N129: Hyundai IONIQ 5 77,4 kWh (alle Versionen) | O129: 40252.1 | P129: 47900 | Q129: Hyundai Tucson 48 V 1.6 T-GDI, 110 kW | R129: 26647.06 | S129: 31710 | T129: 13605 | U129: 16190 | V129: Geländewagen / SUV | W129: PKW
N130: Hyundai IONIQ 6 53 kWh (alle Versionen) | O130: 36890.76 | P130: 43900 | Q130: Hyundai i30 Fastback 118 kW | R130: 26731.09 | S130: 31810 | T130: 10160 | U130: 12090 | V130: Mittelklasse | W130: PKW
N131: Hyundai IONIQ 6 77,4 kWh (alle Versionen) | O131: 41092.44 | P131: 48900 | Q131: Hyundai i30 Fastback 118 kW | R131: 26731.09 | S131: 31810 | T131: 14361 | U131: 17090 | V131: Mittelklasse | W131: PKW
N132: Hyundai Kona Elektro 39,2 kWh (alle Versionen) | O132: 30588.24 | P132: 36400 | Q132: Hyundai Kona 1.6 GDI, Select | R132: 23529.41 | S132: 28000 | T132: 7059 | U132: 8400 | V132: Geländewagen / SUV | W132: PKW
N133: Hyundai Kona Elektro 64,0 kWh (alle Versionen) | O133: 36050.42 | P133: 42900 | Q133: Hyundai Kona 1.6 GDI, Select | R133: 23529.41 | S133: 28000 | T133: 12521 | U133: 14900 | V133: Geländewagen / SUV | W133: PKW
N134: Jeep Avenger Elektro | O134: 31092.44 | P134: 37000 | Q134: VW Taigo Life 70kW | R134: 20844.54 | S134: 24805 | T134: 10248 | U134: 12195 | V134: Geländewagen / SUV | W134: PKW
N135: Kia e-Soul 64,0 kWh (alle Versionen) | O135: 39453.78 | P135: 46950 | Q135: Kia Niro 1.6 GDI Hybrid | R135: 27386.55 | S135: 32590 | T135: =IF(O135-R135>=0,ROUND(O135-R135,0),0) -> 12067 | U135: 14360 | V135: Mini-Van | W135: PKW
N136: Kia Niro EV 64,8 kWh (alle Versionen) | O136: 39991.6 | P136: 47590 | Q136: Kia Niro 1.6 GDI Hybrid | R136: 27386.55 | S136: 32590 | T136: 12605 | U136: 15000 | V136: Geländewagen / SUV | W136: PKW
N137: Kia EV3 58,3 kWh (alle Versionen) | O137: 30243.7 | P137: 35990 | Q137: Kia XCeed 74 kW | R137: 23268.91 | S137: 27690 | T137: 6975 | U137: 8300 | V137: Geländewagen / SUV | W137: PKW | X137: 2025-02-07
N138: Kia EV3 81,4 kWh (alle Versionen) | O138: 34781.51 | P138: 41390 | Q138: Kia XCeed 74 kW | R138: 23268.91 | S138: 27690 | T138: 11513 | U138: 13700 | V138: Geländewagen / SUV | W138: PKW | X138: 2025-02-07
N139: Kia EV6 58 kWh (alle Versionen) | O139: 39487.39 | P139: 46990 | Q139: Kia Sportage Vision 7 1,6 T GDI | R139: 28781.51 | S139: 34250 | T139: 10706 | U139: 12740 | V139: Geländewagen / SUV | W139: PKW
N140: Kia EV6 77,4 kWh (alle Versionen) | O140: =ROUND(P140/1.19,2) -> 43689.08 | P140: 51990 | Q140: Kia Sportage Vision 7 1,6 T GDI | R140: =ROUND(S140/1.19,2) -> 28781.51 | S140: 34250 | T140: 14908 | U140: 17740 | V140: Geländewagen / SUV | W140: PKW
N141: Kia EV9 76,1 kWh (alle Versionen) | O141: =ROUND(P141/1.19,2) -> 52092.44 | P141: 61990 | Q141: Kia Sorento Vision 2.2 CRDi | R141: =ROUND(S141/1.19,2) -> 46378.15 | S141: 55190 | T141: 5714 | U141: 6800 | V141: Geländewagen / SUV | W141: PKW | X141: 2025-01-15
M142: Bezeichung geändert 03.02.2025 | N142: Kia EV9 99,8 kWh (alle Versionen) | O142: =ROUND(P142/1.19,2) -> 60915.97 | P142: 72490 | Q142: Kia Sorento | R142: =ROUND(S142/1.19,2) -> 48899.16 | S142: 58190 | T142: 12017 | U142: 14300 | V142: Geländewagen / SUV | W142: PKW | X142: 2024-02-23
N143: Lexus RZ 300e (alle Versionen) | O143: =ROUND(P143/1.19,2) -> 46714.29 | P143: 55590 | Q143: Lexus NZ 350h | R143: =ROUND(S143/1.19,2) -> 44285.71 | S143: 52700 | T143: =IF(O143-R143>=0,ROUND(O143-R143,0),0) -> 2429 | U143: =IF(P143-S143>=0,ROUND(P143-S143,0),0) -> 2890 | V143: Geländewagen / SUV | W143: PKW | X143: 2025-01-21
N144: Lexus UX 300e (alle Versionen) | O144: =ROUND(P144/1.19,2) -> 37344.54 | P144: 44440 | Q144: Lexus UX 250h | R144: =ROUND(S144/1.19,2) -> 35420.17 | S144: 42150 | T144: =IF(O144-R144>=0,ROUND(O144-R144,0),0) -> 1924 | U144: =IF(P144-S144>=0,ROUND(P144-S144,0),0) -> 2290 | V144: Geländewagen / SUV | W144: PKW
N145: Maserati GranTurismo Folgore | O145: nicht förderfähig gemäß Aufruf | P145: nicht förderfähig gemäß Aufruf | R145: =ROUND(S145/1.19,2) -> 0 | V145: Oberklasse | W145: PKW | X145: 2024-03-13
N146: Maserati Grecale Folgore | O146: nicht förderfähig gemäß Aufruf | P146: nicht förderfähig gemäß Aufruf | R146: 0 | V146: Geländewagen / SUV | W146: PKW | X146: 2024-03-13
N147: Mazda MX-30 e-SKYACTIV (alle Versionen) | O147: =ROUND(P147/1.19,2) -> 30243.7 | P147: 35990 | Q147: Mazda CX-30 SKYACTIV-G 2.0 M Hybrid | R147: =ROUND(S147/1.19,2) -> 22428.57 | S147: 26690 | T147: 7815 | U147: 9300 | V147: Geländewagen / SUV | W147: PKW
N148: Mercedes Benz EQA (alle Versionen) | O148: 42670 | P148: 50777.3 | Q148: Mercedes Benz GLA 180 | R148: =ROUND(S148/1.19,2) -> 34425 | S148: 40965.75 | T148: 8245 | U148: 9812 | V148: Geländewagen / SUV | W148: PKW
N149: Mercedes Benz EQB (alle Versionen) | O149: =ROUND(P149/1.19,2) -> 44160 | P149: 52550.4 | Q149: Mercedes Benz GLB 200 | R149: =ROUND(S149/1.19,2) -> 36095 | S149: 42953.05 | T149: 8065 | U149: 9597 | V149: Geländewagen / SUV | W149: PKW
N150: Mercedes Benz EQE (alle Versionen) | O150: =ROUND(P150/1.19,2) -> 55800 | P150: 66402 | Q150: Mercedes Benz E220 d | R150: =ROUND(S150/1.19,2) -> 45230 | S150: 53823.7 | T150: 10570 | U150: 12578 | V150: Mittelklasse | W150: PKW
N151: Mercedes Benz EQE SUV | O151: nicht förderfähig gemäß Aufruf | P151: nicht förderfähig gemäß Aufruf | R151: =ROUND(S151/1.19,2) -> 0 | V151: Geländewagen / SUV | W151: PKW
N152: Mercedes Benz EQS | O152: nicht förderfähig gemäß Aufruf | P152: nicht förderfähig gemäß Aufruf | R152: 0 | V152: Oberklasse | W152: PKW
N153: Mercedes Benz EQS SUV | O153: nicht förderfähig gemäß Aufruf | P153: nicht förderfähig gemäß Aufruf | R153: 0 | V153: Geländewagen / SUV | W153: PKW
N154: Mercedes-Benz eCitan (nur M1-Versionen) | O154: =ROUND(P154/1.19,2) -> 36220 | P154: =ROUND(36220*1.19,2) -> 43101.8 | Q154: Mercedes Benz Citan 75 kW | R154: 21590 | S154: =ROUND(21590*1.19,2) -> 25692.1 | T154: =IF(O154-R154>=0,ROUND(O154-R154,0),0) -> 14630 | U154: 17410 | V154: Großraum-Van | W154: PKW | X154: 2023-08-29
N155: Mercedes-Benz EQT (nur M1-Versionen) | O155: 41550 | P155: 49444.5 | Q155: Mercedes Benz T 160, 75 kW | R155: 27510 | S155: 32736.9 | T155: 14040 | U155: 16708 | V155: Großraum-Van | W155: PKW | X155: 2023-06-20
N156: Mercedes Benz EQV 250 60kWh (alle Versionen) | O156: 59550 | P156: 70864.5 | Q156: Mercedes Benz V250 d, Lang | R156: =ROUND(S156/1.19,2) -> 52190 | S156: 62106.1 | T156: 7360 | U156: 8758 | V156: Großraum-Van | W156: PKW
N157: Mercedes Benz EQV 300 90kWh (alle Versionen) | O157: 62650 | P157: 74553.5 | Q157: Mercedes Benz V250 d, Lang | R157: =ROUND(S157/1.19,2) -> 52190 | S157: 62106.1 | T157: 10460 | U157: 12447 | V157: Großraum-Van | W157: PKW
N158: Mercedes Benz eVito Tourer 60 kWh (nur M1-Versionen) | O158: 50990 | P158: 60678.1 | Q158: MB Vito Tourer, Base , Lang | R158: =ROUND(S158/1.19,2) -> 41520 | S158: 49408.8 | T158: 9470 | U158: 11269 | V158: Großraum-Van | W158: PKW
N159: Mercedes Benz eVito Tourer 90 kWh (nur M1-Versionen) | O159: 53990 | P159: 64248.1 | Q159: MB Vito Tourer, Base , Lang | R159: =ROUND(S159/1.19,2) -> 41520 | S159: 49408.8 | T159: 12470 | U159: 14839 | V159: Großraum-Van | W159: PKW
N160: MG MG4 51 kWh (alle Versionen) | O160: 26882.35 | P160: 31990 | Q160: Kia Ceed Vision 1.0 T-GDI 74 kW | R160: =ROUND(S160/1.19,2) -> 20747.9 | S160: 24690 | T160: 6134 | U160: 7300 | V160: Kompaktklasse | W160: PKW
N161: MG MG4 64 kWh (alle Versionen) | O161: 30243.7 | P161: 35990 | Q161: Kia Ceed Vision 1.0 T-GDI 74 kW | R161: 20747.9 | S161: 24690 | T161: 9496 | U161: 11300 | V161: Kompaktklasse | W161: PKW
N162: MG MG5 50 kWh (alle Versionen) | O162: 29823.53 | P162: =32812.5+2677.5 -> 35490 | Q162: Kia Ceed Sportwagen 1.0 T-GDI | R162: =ROUND(S162/1.19,2) -> 21588.24 | S162: 25690 | T162: 8235 | U162: 9800 | V162: Mittelklasse | W162: PKW
N163: MG MG5 61 kWh (alle Versionen) | O163: 32344.54 | P163: =35812.5+2677.5 -> 38490 | Q163: Kia Ceed Sportwagen 1.0 T-GDI | R163: =ROUND(S163/1.19,2) -> 21588.24 | S163: 25690 | T163: 10756 | U163: 12800 | V163: Mittelklasse | W163: PKW
N164: MG Marvel-R (alle Versionen) | O164: =ROUND(P164/1.19,2) -> 39487.39 | P164: 46990 | Q164: VW Tiguan Life 1.5 TSI OPF 6 Gang 110 kW | R164: =ROUND(S164/1.19,2) -> 31121.85 | S164: 37035 | T164: 8366 | U164: 9955 | V164: Geländewagen / SUV | W164: PKW
N165: MG ZS EV (alle Versionen) | O165: 28563.03 | P165: 33990 | Q165: Peugeot 2008 PureTech 130 | R165: =ROUND(S165/1.19,2) -> 23571.43 | S165: 28050 | T165: 4992 | U165: 5940 | V165: Kompaktklasse | W165: PKW
M166: Fahrzeugeinstufung? | N166: MINI ACEMAN E 38,5 kWh (alle Versionen) | O166: 29327.73 | P166: 34900 | Q166: Mini Cooper C 5-Türer | R166: =ROUND(S166/1.19,2) -> 25126.05 | S166: 29900 | T166: 4202 | U166: 5000 | V166: Kompaktklasse | W166: PKW | X166: 2024-07-17
M167: Fahrzeugeinstufung? | N167: MINI ACEMAN SE 49,2 kWh (alle Versionen) | O167: 32689.08 | P167: 38900 | Q167: Mini Cooper C 5-Türer | R167: 25126.05 | S167: 29900 | T167: 7563 | U167: 9000 | V167: Kompaktklasse | W167: PKW | X167: 2024-07-17
M168: zuordnung Fzg-kl. Am 21.02.2024 geändert | N168: MINI COOPER SE 3-Türer (alle Versionen) | O168: 31680.67 | P168: 37700 | Q168: Mini Cooper S 3-Türer | R168: =ROUND(S168/1.19,2) -> 26974.79 | S168: 32100 | T168: 4706 | U168: 5600 | V168: Mini | W168: PKW
M169: zuordnung Fzg-kl. Am 21.02.2024 geändert | N169: MINI COOPER E 36,6 kWh MY 24 (alle Versionen) | O169: 27647.06 | P169: 32900 | Q169: MINI Cooper C | R169: =ROUND(S169/1.19,2) -> 24285.71 | S169: 28900 | T169: 3361 | U169: 4000 | V169: Mini | W169: PKW | X169: 2024-02-14
M170: zuordnung Fzg-kl. Am 21.02.2024 geändert | N170: MINI COOPER SE 49.2 kWh MY 24(alle Versionen) | O170: 31008.4 | P170: 36900 | Q170: MINI Cooper C | R170: =ROUND(S170/1.19,2) -> 24285.71 | S170: 28900 | T170: =IF(O170-R170>=0,ROUND(O170-R170,0),0) -> 6723 | U170: 8000 | V170: Mini | W170: PKW | X170: 2024-02-14
N171: MINI Countryman E 64,6 kWh, U25 (alle Versionen) | O171: 36554.62 | P171: 43500 | Q171: MINI Countryman C | R171: 33529.41 | S171: 39900 | T171: 3025 | U171: 3600 | V171: Geländewagen / SUV | W171: PKW | X171: 2024-02-14
N172: Nio ET5 75 kWh (alle Versionen) | O172: 50000 | P172: 59500 | Q172: BMW 330i xDrive | R172: =ROUND(S172/1.19,2) -> 48991.6 | S172: 58300 | T172: 1008 | U172: 1200 | V172: Mittelklasse | W172: PKW
N173: Nio ET5 100 kWh (alle Versionen) | O173: 57563.03 | P173: 68500 | Q173: BMW 330i xDrive | R173: =ROUND(S173/1.19,2) -> 48991.6 | S173: 58300 | T173: 8571 | U173: 10200 | V173: Mittelklasse | W173: PKW
N174: Nio ET5 BaaS (Batterie-Abo) | O174: nicht förderfähig gemäß Aufruf | P174: nicht förderfähig gemäß Aufruf | R174: 0 | V174: Mittelklasse | W174: PKW
N175: Nio EL7 | O175: nicht förderfähig gemäß Aufruf | P175: nicht förderfähig gemäß Aufruf | R175: 0 | V175: Geländewagen / SUV | W175: PKW
N176: Nio ET7 | O176: nicht förderfähig gemäß Aufruf | P176: nicht förderfähig gemäß Aufruf | R176: 0 | V176: Oberklasse | W176: PKW
N177: Nissan ARIYA 63 kWh (alle Versionen) | O177: 39907.56 | P177: 47490 | Q177: Nissan X-Trail | R177: =ROUND(S177/1.19,2) -> 33109.24 | S177: 39400 | T177: 6798 | U177: 8090 | V177: Geländewagen / SUV | W177: PKW
N178: Nissan ARIYA 87 kWh (alle Versionen) | O178: 53352.94 | P178: 63490 | Q178: Nissan X-Trail | R178: =ROUND(S178/1.19,2) -> 37310.92 | S178: 44400 | T178: 16042 | U178: 19090 | V178: Geländewagen / SUV | W178: PKW
N179: Nissan Leaf 39 kwh (alle Versionen) | O179: 28067.23 | P179: 33400 | Q179: Nissan Qashqai 1.3 DIG-T 103 kW | R179: =ROUND(S179/1.19,2) -> 24067.23 | S179: 28640 | T179: 4000 | U179: 4760 | V179: Kompaktklasse | W179: PKW
N180: Nissan Leaf 59 kwh (alle Versionen) | O180: 34537.82 | P180: 41100 | Q180: Nissan Qashqai 1.3 DIG-T 116 kW | R180: =ROUND(S180/1.19,2) -> 29058.82 | S180: 34580 | T180: 5479 | U180: 6520 | V180: Kompaktklasse | W180: PKW
M181: Preis ist falsch (eNV200) | N181: Nissan Townstar EV (nur M1-Versionen) | O181: 28660 | P181: 34105.4 | Q181: Nissan Townstar (nur M1-Versionen) | R181: =ROUND(S181/1.19,2) -> 20210 | S181: 24049.9 | T181: 8450 | U181: 10056 | V181: Großraum-Van | W181: PKW | X181: Herr Zobel Autotreff Oranke
M182: L6e (45 km/h) | N182: Ökoflitzer Paxster 2.2 L6e (alle Versionen) | O182: 16900 | P182: =ROUND(16900*1.19,2) -> 20111 | Q182: Aixam D-Truck Pritsche | R182: 13100.84 | S182: 15590 | T182: 3799 | U182: 4521 | V182: Leichtfahrzeug | W182: LFZ | X182: 2023-04-06
M183: L7e (60 km/h) | N183: Ökoflitzer Paxster 2.2 L7e (alle Versionen) | O183: 17329 | P183: =ROUNDDOWN((16900+429)*1.19,2) -> 20621.51 | Q183: Aixam D-Truck Pritsche | R183: 13100.84 | S183: 15590 | T183: 4228 | U183: 5032 | V183: Leichtfahrzeug | W183: LFZ | X183: 2023-04-06
N184: Opel Astra Electric (alle Versionen) | O184: 37865.55 | P184: 45060 | Q184: Opel Astra (96 kW) | R184: 26663.87 | S184: 31730 | T184: 11202 | U184: 13330 | V184: Kompaktklasse | W184: PKW | X184: 2023-06-20
N185: Opel Combo-e Life (alle Versionen) | O185: 36176.47 | P185: 43050 | Q185: Renaut Kangoo TCe 74 kW | R185: 21806.72 | S185: 25950 | T185: 14370 | U185: 17100 | V185: Großraum-Van | W185: PKW
N186: Opel Corsa-e (alle Versionen) | O186: 30584.03 | P186: 36395 | Q186: Opel Corsa Elegance (74 kW) | R186: 18756.3 | S186: 22320 | T186: =IF(O186-R186>=0,ROUND(O186-R186,0),0) -> 11828 | U186: 14075 | V186: Kleinwagen | W186: PKW
N187: Opel Frontera-e | O187: =ROUND(P187/1.19,2) -> 24361.34 | P187: 28990 | Q187: Opel Frontera 74 kW | R187: =ROUND(S187/1.19,2) -> 20084.03 | S187: 23900 | T187: =IF(O187-R187>=0,ROUND(O187-R187,0),0) -> 4277 | U187: =IF(P187-S187>=0,ROUND(P187-S187,0),0) -> 5090 | V187: Geländewagen / SUV | W187: PKW | X187: 2024-08-16
N188: Opel Grandland Electric 73 kWh (alle Versionen) | O188: =ROUND(P188/1.19,2) -> 39285.71 | P188: 46750 | Q188: Opel Grandland 1.2 | R188: =ROUND(S188/1.19,2) -> 30588.24 | S188: 36400 | T188: 8697 | U188: 10350 | V188: Geländewagen / SUV | W188: PKW | X188: 2025-01-24
N189: Opel Grandland Electric 82 kWh (alle Versionen) | O189: 43655.46 | P189: 51950 | Q189: Opel Grandland 1.2 | R189: 30588.24 | S189: 36400 | T189: 13067 | U189: 15550 | V189: Geländewagen / SUV | W189: PKW | X189: 2025-01-24
M190: zuordnung Fzg-kl. Am 21.02.2024 geändert | N190: Opel Mokka-E (alle Versionen) | O190: 34159.66 | P190: 40650 | Q190: Opel Mokka 1.2 Elegance 74 kW | R190: 22168.07 | S190: 26380 | T190: 11992 | U190: 14270 | V190: Geländewagen / SUV | W190: PKW
N191: Opel Rocks-e (alle Versionen) | O191: 6714.29 | P191: 7990 | Q191: Kymco Maxxer S300 T ONROAD LOF (Quad) | R191: 4957.14 | S191: 5899 | T191: 1757 | U191: 2091 | V191: Leichtfahrzeug | W191: LFZ | X191: 2023-03-16
N192: Opel Vivaro-e Kombi / Doppelkabine 50 kWh (nur M1-Versionen) | O192: 42500 | P192: =42500*1.19 -> 50575 | Q192: Opel Vivaro Doppelkabine M | R192: 36650 | S192: =36650*1.19 -> 43613.5 | T192: 5850 | U192: 6962 | V192: Großraum-Van | W192: PKW | X192: 2023-04-13
N193: Opel Vivaro-e Kombi / Doppelkabine 75 kWh (nur M1-Versionen) | O193: 47500 | P193: =47500*1.19 -> 56525 | Q193: Opel Vivaro Doppelkabine M | R193: 36650 | S193: =36650*1.19 -> 43613.5 | T193: 10850 | U193: 12912 | V193: Großraum-Van | W193: PKW | X193: 2023-04-13
N194: Opel Zafira-E Life 50 kWh (nur M1-Versionen) | O194: 53151.26 | P194: 63250 | Q194: Toyota Proace Verso 106 kW, L1-Version | R194: 44302.52 | S194: 52720 | T194: 8849 | U194: 10530 | V194: Großraum-Van | W194: PKW
N195: Opel Zafira-E Life 75 kWh (nur M1-Versionen) | O195: 58193.28 | P195: 69250 | Q195: Toyota Proace Verso 106 kW, L1-Version | R195: 44302.52 | S195: 52720 | T195: 13891 | U195: 16530 | V195: Großraum-Van | W195: PKW
N196: Peugeot e-208 (alle Versionen) | O196: 29705.88 | P196: 35350 | Q196: Peugeot 208 PureTech 100 Allure | R196: 19621.85 | S196: 23350 | T196: 10084 | U196: 12000 | V196: Kleinwagen | W196: PKW
N197: Peugeot e-2008 (alle Versionen) | O197: 31848.74 | P197: 37900 | Q197: Peugeot 2008 PureTech 100 Allure | R197: 22857.14 | S197: 27200 | T197: 8992 | U197: 10700 | V197: Geländewagen / SUV | W197: PKW
N198: Peugeot e-308 (alle Versionen) | O198: 37617.65 | P198: 44765 | Q198: Peugeot 308 PureTech 130 | R198: 26260.5 | S198: 31250 | T198: 11357 | U198: 13515 | V198: Kompaktklasse | W198: PKW | X198: 2023-09-29
N199: Peugeot E-3008 (alle Versionen) 73 kWh | O199: 40882.35 | P199: 48650 | Q199: Peugeot 3008 | R199: 32983.19 | S199: 39250 | T199: 7899 | U199: 9400 | V199: Geländewagen / SUV | W199: PKW | X199: 2024-03-26
N200: Peugeot E-408 (alle Versionen) | O200: 39159.66 | P200: 46600 | Q200: Peugeot 408 | R200: 33655.46 | S200: 40050 | T200: 5504 | U200: 6550 | V200: Geländewagen / SUV | W200: PKW | X200: 2025-01-23
N201: Peugeot E-5008 (alle Versionen) 73 kWh | O201: 42983.19 | P201: 51150 | Q201: Peugeot 5008 | R201: 36252.1 | S201: 43140 | T201: 6731 | U201: 8010 | V201: Geländewagen / SUV | W201: PKW | X201: 2025-01-23
N202: Peugeot E-5008 (alle Versionen) 97 kWh | O202: 46428.57 | P202: 55250 | Q202: Peugeot 5008 | R202: =ROUND(S202/1.19,2) -> 36252.1 | S202: 43140 | T202: =IF(O202-R202>=0,ROUND(O202-R202,0),0) -> 10176 | U202: =IF(P202-S202>=0,ROUND(P202-S202,0),0) -> 12110 | V202: Geländewagen / SUV | W202: PKW | X202: 2025-01-23
N203: Peugeot E-Expert Kombi 50kWh (nur M1-Versionen) | O203: 43647.06 | P203: 51940 | Q203: Toyota Proace Verso (keine förderfähigen Investitionsmehrausgaben) | R203: 44302.52 | S203: 52720 | T203: 0 | U203: 0 | V203: Großraum-Van | W203: PKW
... 89 more rows

Sheet sonst. PKW u. LFZ (hidden)
A1: Ermittlung der förderfähigen Ausgaben (EfA) für sonst. PKW u. LFZ | K1: =IF(Fahrzeuge!$L$1=0, " ","FKZ: 03EMI4"&Fahrzeuge!$L$1) -> 
A2: Hinweise:
A3: Hierfür müssen Sie entsprechende Angebote für das E-Fahrzeug und ein Referenzfahrzeug eingeholt haben. Diese Angebote sind beizufügen.
A4: =IF(Fahrzeuge!C6="","Bitte geben Sie auf der Registerkarte 'Fahrzeuge' an, ob Sie zum Vorsteuerabzug berechtigt sind.","") -> Bitte geben Sie auf der Registerkarte 'Fahrzeuge' an, ob Sie zum Vorsteuerabzug berechtigt sind.
A6: Pos. | B6: Typ E-Fahrzeug | C6: =IF(Fahrzeuge!$C$6="nein","Bruttopreis E-Fahrzeug laut beigefügtem Angebot *",IF(Fahrzeuge!$C$6="ja","Nettopreis E-Fahrzeug laut beigefügtem Angebot *","Bitte wählen sie aus, ob sie zum Vorsteuerabzug berechtigt sind!")) -> Bitte wählen sie aus, ob sie zum Vorsteuerabzug berechtigt sind! | D6: Typ Referenzfahrzeug | E6: =IF(Fahrzeuge!$C$6="nein","Bruttopreis Referenzfahrzeug laut beigefügtem Angebot *",IF(Fahrzeuge!$C$6="ja","Nettopreis Referenzfahrzeug laut beigefügtem Angebot *","Bitte wählen sie aus, ob sie zum Vorsteuerabzug berechtigt sind!")) -> Bitte wählen sie aus, ob sie zum Vorsteuerabzug berechtigt sind! | F6: =IF(Fahrzeuge!$C$6="nein","Förderfähige Ausgaben pro Fahrzeug (brutto)",IF(Fahrzeuge!$C$6="ja","Förderfähige Ausgaben pro Fahrzeug (netto)","Bitte wählen sie aus, ob sie zum Vorsteuerabzug berechtigt sind!")) -> Bitte wählen sie aus, ob sie zum Vorsteuerabzug berechtigt sind! | G6: Anzahl zu beschaffender Fahrzeuge des Typs | H6: erwartete durchschnittliche Jahres-Fahrleistung in km* | I6: * alternativ: erwartete Jahresbetriebs-stunden | J6: Förderfähige Ausgaben | K6: Korrekturfeld PtJ
A7: 1 | F7: =IF(B7>"",IF($A$4="",C7-E7,$F$6),"") ->  | J7: =IF(B7>"",F7*G7,"") -> 
A9: 2 | F9: =IF(B9>"",IF($A$4="",C9-E9,$F$6),"") ->  | J9: =IF(B9>"",F9*G9,"") -> 
A11: 3
A13: 4
A15: 5
A17: 6
A19: 7
A21: 8
A23: 9
A25: 10
A27: Summe | G27: =IF(COUNTA(G7:G25)=COUNTA(H7:I25),"","Anzahl oder Angabe Fahrleistung / Betr.-Std. fehlt oder doppelt") ->  | H27: =IFERROR("Ø: "&TEXT((SUMPRODUCT($G7:$G25,H7:H25)/SUMIFS($G7:$G25,H7:H25,">0")),"#.##0"),"") ->  | I27: =IFERROR("Ø: "&TEXT((SUMPRODUCT($G7:$G25,I7:I25)/SUMIFS($G7:$G25,I7:I25,">0")),"#.##0"),"") ->  | J27: =SUM(J7:J25) -> 0
A29: * Für Fahrzeuge, bei denen eine Jahresfahrleistung keine Relevanz hat, können auch die jährlichen Betriebsstunden angesetzt werden (z.B. bei Staplerfahrzeugen mit Li-Batterie)

Sheet Ladeinfrastruktur
A1: Ermittlung der förderfähigen Ausgaben (EfA) - Pauschalen für Ladeinfrastruktur | F1: =IF(Fahrzeuge!$L$1=0, " ","FKZ: 03EMI4"&Fahrzeuge!$L$1) -> 
A2: =IF(Fahrzeuge!C6="","Hinweis:","") -> Hinweis:
A3: =IF(Fahrzeuge!C6="","Bitte geben Sie auf der Registerkarte 'Fahrzeuge' an, ob Sie zum Vorsteuerabzug berechtigt sind","") -> Bitte geben Sie auf der Registerkarte 'Fahrzeuge' an, ob Sie zum Vorsteuerabzug berechtigt sind
A5: Pos. | B5: Typ Ladeinfrastruktur (LIS)* [Auswahlbox] | C5: =IF(Fahrzeuge!$C$6="nein","Förderfähige Ausgaben pro Ladesäule (brutto)",IF(Fahrzeuge!$C$6="ja","Förderfähige Ausgaben pro Ladesäule (netto)","Bitte wählen sie aus, ob sie zum Vorsteuerabzug berechtigt sind!")) -> Bitte wählen sie aus, ob sie zum Vorsteuerabzug berechtigt sind! | D5: Anzahl zu beschaffender Ladesäulen des Typs | E5: Förderfähige Ausgaben | F5: Korrekturfeld PtJ
A6: 1 | C6: =IF($B6>0,IF(Fahrzeuge!$C$6="nein",VLOOKUP($B6,$I$41:$K$53,3,0),IF(Fahrzeuge!$C$6="ja",VLOOKUP($B6,$I$41:$K$53,2,0),"Bitte wählen sie aus, ob sie zum Vorsteuerabzug berechtigt sind!")),"") ->  | E6: =IF(D6>0,C6*D6,"") -> 
A8: 2 | C8: =IF($B8>0,IF(Fahrzeuge!$C$6="nein",VLOOKUP($B8,$I$41:$K$53,3,0),IF(Fahrzeuge!$C$6="ja",VLOOKUP($B8,$I$41:$K$53,2,0),"Bitte wählen sie aus, ob sie zum Vorsteuerabzug berechtigt sind!")),"") ->  | E8: =IF(D8>0,C8*D8,"") -> 
A10: 3 | C10: =IF($B10>0,IF(Fahrzeuge!$C$6="nein",VLOOKUP($B10,$I$41:$K$53,3,0),IF(Fahrzeuge!$C$6="ja",VLOOKUP($B10,$I$41:$K$53,2,0),"Bitte wählen sie aus, ob sie zum Vorsteuerabzug berechtigt sind!")),"") ->  | E10: =IF(D10>0,C10*D10,"") -> 
A12: 4 | C12: =IF($B12>0,IF(Fahrzeuge!$C$6="nein",VLOOKUP($B12,$I$41:$K$53,3,0),IF(Fahrzeuge!$C$6="ja",VLOOKUP($B12,$I$41:$K$53,2,0),"Bitte wählen sie aus, ob sie zum Vorsteuerabzug berechtigt sind!")),"") ->  | E12: =IF(D12>0,C12*D12,"") -> 
A14: 5 | C14: =IF($B14>0,IF(Fahrzeuge!$C$6="nein",VLOOKUP($B14,$I$41:$K$53,3,0),IF(Fahrzeuge!$C$6="ja",VLOOKUP($B14,$I$41:$K$53,2,0),"Bitte wählen sie aus, ob sie zum Vorsteuerabzug berechtigt sind!")),"") ->  | E14: =IF(D14>0,C14*D14,"") -> 
A16: 6 | C16: =IF($B16>0,IF(Fahrzeuge!$C$6="nein",VLOOKUP($B16,$I$41:$K$53,3,0),IF(Fahrzeuge!$C$6="ja",VLOOKUP($B16,$I$41:$K$53,2,0),"Bitte wählen sie aus, ob sie zum Vorsteuerabzug berechtigt sind!")),"") ->  | E16: =IF(D16>0,C16*D16,"") -> 
A18: 7 | C18: =IF($B18>0,IF(Fahrzeuge!$C$6="nein",VLOOKUP($B18,$I$41:$K$53,3,0),IF(Fahrzeuge!$C$6="ja",VLOOKUP($B18,$I$41:$K$53,2,0),"Bitte wählen sie aus, ob sie zum Vorsteuerabzug berechtigt sind!")),"") ->  | E18: =IF(D18>0,C18*D18,"") -> 
A20: 8 | C20: =IF($B20>0,IF(Fahrzeuge!$C$6="nein",VLOOKUP($B20,$I$41:$K$53,3,0),IF(Fahrzeuge!$C$6="ja",VLOOKUP($B20,$I$41:$K$53,2,0),"Bitte wählen sie aus, ob sie zum Vorsteuerabzug berechtigt sind!")),"") ->  | E20: =IF(D20>0,C20*D20,"") -> 
A22: 9 | C22: =IF($B22>0,IF(Fahrzeuge!$C$6="nein",VLOOKUP($B22,$I$41:$K$53,3,0),IF(Fahrzeuge!$C$6="ja",VLOOKUP($B22,$I$41:$K$53,2,0),"Bitte wählen sie aus, ob sie zum Vorsteuerabzug berechtigt sind!")),"") ->  | E22: =IF(D22>0,C22*D22,"") -> 
A24: 10 | C24: =IF($B24>0,IF(Fahrzeuge!$C$6="nein",VLOOKUP($B24,$I$41:$K$53,3,0),IF(Fahrzeuge!$C$6="ja",VLOOKUP($B24,$I$41:$K$53,2,0),"Bitte wählen sie aus, ob sie zum Vorsteuerabzug berechtigt sind!")),"") ->  | E24: =IF(D24>0,C24*D24,"") -> 
A26: Summe | E26: =SUM(E6:E24) -> 0
A28: * Legende | B28: öff. zugängl. | C28: öffentlich zugängliche Ladepunkte im Sinne der Verordnung über technische Mindestanforderungen an den sicheren und interoperablen Aufbau und Betrieb von öffentlich zugänglichen Ladepunkten für Elektromobile
B29: nicht öff. zugängl. | C29: LIS ist für die Öffentlichkeit nicht zugänglich
B30: DC | C30: Gleichstrom-Ladeinfrastruktur
B31: AC | C31: Wechselstrom-Ladeinfrastruktur
I40: Typ Ladeinfrastruktur | J40: Ausgabenpauschale netto | K40: Ausgabenpauschale brutto
I41: Mobile Ladestationen [AC] ab 3,7 kW (1 Ladepunkt) | J41: 500 | K41: =J41*1.19 -> 595
I42: nicht öff. zugängl. [AC] ab 3,7 kW (1 Ladepunkt) | J42: 600 | K42: 714
I43: nicht öff. zugängl. [AC] ab 11 kW (min. 2 Ladepunkte) | J43: 3000 | K43: 3570
I44: nicht öff. zugängl. [DC] bis 25 kW | J44: 10000 | K44: 11900
I45: nicht öff. zugängl. [DC] 25-50 kW | J45: 20000 | K45: 23800
I46: nicht öff. zugängl. [DC] 51-149 kW | J46: 35000 | K46: 41650
I47: nicht öff. zugängl. [DC] ab 150 kW | J47: 50000 | K47: 59500
I48: öff. zugängl. [AC] ab 3,7 kW (1 Ladepunkt) | J48: =J42 -> 600 | K48: 714
I49: öff. zugängl. [AC] ab 11 kW (min. 2 Ladepunkte) | J49: =J43 -> 3000 | K49: =J49*1.19 -> 3570
I50: öff. zugängl. [DC] bis 25 kW | J50: 10000 | K50: 11900
I51: öff. zugängl. [DC] 25-50 kW | J51: =J45 -> 20000 | K51: 23800
I52: öff. zugängl. [DC] 51-149 kW | J52: =J46 -> 35000 | K52: 41650
I53: öff. zugängl. [DC] ab 150 kW | J53: =J47 -> 50000 | K53: 59500

Sheet spezielle Ladeinfrastruktur (hidden)
A1: Ermittlung der förderfähigen Ausgaben für Ladeinfrastruktur, die nicht in der Registerkarte "Ladeinfrastruktur" aufgeführt wird | F1: =IF(Fahrzeuge!$L$1=0, " ","FKZ: 03EMI4"&Fahrzeuge!$L$1) -> 
A2: Hinweise:
A3: Hierfür müssen Sie entsprechende Angebote für die Ladeinfrastruktur eingeholt haben. Diese Angebote sind beizufügen.
A4: =IF(Fahrzeuge!C6="","Bitte geben Sie auf der Registerkarte 'Fahrzeuge' an, ob Sie zum Vorsteuerabzug berechtigt sind","") -> Bitte geben Sie auf der Registerkarte 'Fahrzeuge' an, ob Sie zum Vorsteuerabzug berechtigt sind
A6: Pos. | B6: Typ Ladeinfrastruktur (LIS) | C6: =IF(Fahrzeuge!$C$6="nein","Bruttopreis LIS laut beigefügtem Angebot *",IF(Fahrzeuge!$C$6="ja","Nettopreis LIS laut beigefügtem Angebot *","Bitte wählen sie aus, ob sie zum Vorsteuerabzug berechtigt sind!")) -> Bitte wählen sie aus, ob sie zum Vorsteuerabzug berechtigt sind! | D6: Anzahl zu beschaffender LIS dieses Typs | E6: Förderfähige Ausgaben | F6: Korrekturfeld PtJ
A7: 1 | E7: =IF(C7>0,D7*C7,"") -> 
A9: 2 | E9: =IF(C9>0,D9*C9,"") -> 
A11: 3 | E11: =IF(C11>0,D11*C11,"") -> 
A13: 4 | E13: =IF(C13>0,D13*C13,"") -> 
A15: 5 | E15: =IF(C15>0,D15*C15,"") -> 
A17: 6 | E17: =IF(C17>0,D17*C17,"") -> 
A19: 7 | E19: =IF(C19>0,D19*C19,"") -> 
A21: 8 | E21: =IF(C21>0,D21*C21,"") -> 
A23: 9 | E23: =IF(C23>0,D23*C23,"") -> 
A25: 10 | E25: =IF(C25>0,D25*C25,"") -> 
A27: Summe | E27: =IF(C7>0,SUM(E7:E25),"") -> 

Sheet Vorlage für AZA
A1: Hinweis: | E1: =IF(Fahrzeuge!$L$1=0, " ","FKZ: 03EMI4"&Fahrzeuge!$L$1) -> 
A2: Vorlage zum Übertragen der Daten aus dieser Tabelle in den AZA-Antrag in easy-Online.
A3: Bitte kopieren Sie die Bezeichung wie hier dargestellt in das easy-Online-Formular.
A4: Die Anzahl der zu beschaffenden Fahrzeuge/ Ladeinfrastruktur muss ggf. auf die Anschaffungsjahre aufgeteilt werden.
A5: Beachten Sie, dass die hier angegebene Summe mit den Gesamtmitteln im easy-Online-Antrag überein stimmen müssen.
A6: =IF(Fahrzeuge!$C$6="nein","Der Antragsteller ist nicht zum Vorsteuerabzug berechtigt.",IF(Fahrzeuge!$C$6="ja","Der Antragsteller ist zum Vorsteuerabzug berechtigt.","Bitte wählen sie aus, ob sie zum Vorsteuerabzug berechtigt sind!")) -> Bitte wählen sie aus, ob sie zum Vorsteuerabzug berechtigt sind!
A7: (sollte diese Aussage nicht zutreffen, wählen Sie bitte die entsprechende Option auf der Registerkarte "Fahrzeuge")
A9: Gesamtfinanzierung - Gegenstände und andere Investitionen von mehr als 800 € im Einzelfall
A11: lfd. Nr. | B11: Bezeichnung | C11: Zuwendungsfähige Ausgaben / Stück | D11: Anzahl | E11: F0833 Betrag €
A12: =IF(Fahrzeuge!$B15>"",Fahrzeuge!A15,0) -> 0 | B12: =IF(Fahrzeuge!$B15>"",CONCATENATE(Fahrzeuge!AI15," ",Fahrzeuge!B15),"") ->  | C12: =IF(Fahrzeuge!$B15>"",Fahrzeuge!G15,"") ->  | D12: =IF(Fahrzeuge!$B15>"",Fahrzeuge!I15,"") ->  | E12: =IF(Fahrzeuge!$B15>"",Fahrzeuge!K15,"") -> 
A13: =IF(Fahrzeuge!B16>"",Fahrzeuge!A16,A12) -> 0 | B13: =IF(Fahrzeuge!$B16>"",CONCATENATE(Fahrzeuge!AI16," ",Fahrzeuge!B16),"") ->  | C13: =IF(Fahrzeuge!$B16>"",Fahrzeuge!G16,"") ->  | D13: =IF(Fahrzeuge!$B16>"",Fahrzeuge!I16,"") ->  | E13: =IF(Fahrzeuge!$B16>"",Fahrzeuge!K16,"") -> 
A14: =IF(Fahrzeuge!B17>"",Fahrzeuge!A17,A13) -> 0 | B14: =IF(Fahrzeuge!$B17>"",CONCATENATE(Fahrzeuge!AI17," ",Fahrzeuge!B17),"") ->  | C14: =IF(Fahrzeuge!$B17>"",Fahrzeuge!G17,"") ->  | D14: =IF(Fahrzeuge!$B17>"",Fahrzeuge!I17,"") ->  | E14: =IF(Fahrzeuge!$B17>"",Fahrzeuge!K17,"") -> 
A15: =IF(Fahrzeuge!B18>"",Fahrzeuge!A18,A14) -> 0 | B15: =IF(Fahrzeuge!$B18>"",CONCATENATE(Fahrzeuge!AI18," ",Fahrzeuge!B18),"") ->  | C15: =IF(Fahrzeuge!$B18>"",Fahrzeuge!G18,"") ->  | D15: =IF(Fahrzeuge!$B18>"",Fahrzeuge!I18,"") ->  | E15: =IF(Fahrzeuge!$B18>"",Fahrzeuge!K18,"") -> 
A16: =IF(Fahrzeuge!B19>"",Fahrzeuge!A19,A15) -> 0 | B16: =IF(Fahrzeuge!$B19>"",CONCATENATE(Fahrzeuge!AI19," ",Fahrzeuge!B19),"") ->  | C16: =IF(Fahrzeuge!$B19>"",Fahrzeuge!G19,"") ->  | D16: =IF(Fahrzeuge!$B19>"",Fahrzeuge!I19,"") ->  | E16: =IF(Fahrzeuge!$B19>"",Fahrzeuge!K19,"") -> 
A17: =IF(Fahrzeuge!B20>"",Fahrzeuge!A20,A16) -> 0 | B17: =IF(Fahrzeuge!$B20>"",CONCATENATE(Fahrzeuge!AI20," ",Fahrzeuge!B20),"") ->  | C17: =IF(Fahrzeuge!$B20>"",Fahrzeuge!G20,"") ->  | D17: =IF(Fahrzeuge!$B20>"",Fahrzeuge!I20,"") ->  | E17: =IF(Fahrzeuge!$B20>"",Fahrzeuge!K20,"") -> 
A18: =IF(Fahrzeuge!B21>"",Fahrzeuge!A21,A17) -> 0 | B18: =IF(Fahrzeuge!$B21>"",CONCATENATE(Fahrzeuge!AI21," ",Fahrzeuge!B21),"") ->  | C18: =IF(Fahrzeuge!$B21>"",Fahrzeuge!G21,"") ->  | D18: =IF(Fahrzeuge!$B21>"",Fahrzeuge!I21,"") ->  | E18: =IF(Fahrzeuge!$B21>"",Fahrzeuge!K21,"") -> 
A19: =IF(Fahrzeuge!B22>"",Fahrzeuge!A22,A18) -> 0 | B19: =IF(Fahrzeuge!$B22>"",CONCATENATE(Fahrzeuge!AI22," ",Fahrzeuge!B22),"") ->  | C19: =IF(Fahrzeuge!$B22>"",Fahrzeuge!G22,"") ->  | D19: =IF(Fahrzeuge!$B22>"",Fahrzeuge!I22,"") ->  | E19: =IF(Fahrzeuge!$B22>"",Fahrzeuge!K22,"") -> 
A20: =IF(Fahrzeuge!B23>"",Fahrzeuge!A23,A19) -> 0 | B20: =IF(Fahrzeuge!$B23>"",CONCATENATE(Fahrzeuge!AI23," ",Fahrzeuge!B23),"") ->  | C20: =IF(Fahrzeuge!$B23>"",Fahrzeuge!G23,"") ->  | D20: =IF(Fahrzeuge!$B23>"",Fahrzeuge!I23,"") ->  | E20: =IF(Fahrzeuge!$B23>"",Fahrzeuge!K23,"") -> 
A21: =IF(Fahrzeuge!B24>"",Fahrzeuge!A24,A20) -> 0 | B21: =IF(Fahrzeuge!$B24>"",CONCATENATE(Fahrzeuge!AI24," ",Fahrzeuge!B24),"") ->  | C21: =IF(Fahrzeuge!$B24>"",Fahrzeuge!G24,"") ->  | D21: =IF(Fahrzeuge!$B24>"",Fahrzeuge!I24,"") ->  | E21: =IF(Fahrzeuge!$B24>"",Fahrzeuge!K24,"") -> 
A22: =IF(Fahrzeuge!B25>"",Fahrzeuge!A25,A21) -> 0 | B22: =IF(Fahrzeuge!$B25>"",CONCATENATE(Fahrzeuge!AI25," ",Fahrzeuge!B25),"") ->  | C22: =IF(Fahrzeuge!$B25>"",Fahrzeuge!G25,"") ->  | D22: =IF(Fahrzeuge!$B25>"",Fahrzeuge!I25,"") ->  | E22: =IF(Fahrzeuge!$B25>"",Fahrzeuge!K25,"") -> 
A23: =IF(Fahrzeuge!B26>"",Fahrzeuge!A26,A22) -> 0 | B23: =IF(Fahrzeuge!$B26>"",CONCATENATE(Fahrzeuge!AI26," ",Fahrzeuge!B26),"") ->  | C23: =IF(Fahrzeuge!$B26>"",Fahrzeuge!G26,"") ->  | D23: =IF(Fahrzeuge!$B26>"",Fahrzeuge!I26,"") ->  | E23: =IF(Fahrzeuge!$B26>"",Fahrzeuge!K26,"") -> 
A24: =IF(Fahrzeuge!B27>"",Fahrzeuge!A27,A23) -> 0 | B24: =IF(Fahrzeuge!$B27>"",CONCATENATE(Fahrzeuge!AI27," ",Fahrzeuge!B27),"") ->  | C24: =IF(Fahrzeuge!$B27>"",Fahrzeuge!G27,"") ->  | D24: =IF(Fahrzeuge!$B27>"",Fahrzeuge!I27,"") ->  | E24: =IF(Fahrzeuge!$B27>"",Fahrzeuge!K27,"") -> 
A25: =IF(Fahrzeuge!B28>"",Fahrzeuge!A28,A24) -> 0 | B25: =IF(Fahrzeuge!$B28>"",CONCATENATE(Fahrzeuge!AI28," ",Fahrzeuge!B28),"") ->  | C25: =IF(Fahrzeuge!$B28>"",Fahrzeuge!G28,"") ->  | D25: =IF(Fahrzeuge!$B28>"",Fahrzeuge!I28,"") ->  | E25: =IF(Fahrzeuge!$B28>"",Fahrzeuge!K28,"") -> 
A26: =IF(Fahrzeuge!B29>"",Fahrzeuge!A29,A25) -> 0 | B26: =IF(Fahrzeuge!$B29>"",CONCATENATE(Fahrzeuge!AI29," ",Fahrzeuge!B29),"") ->  | C26: =IF(Fahrzeuge!$B29>"",Fahrzeuge!G29,"") ->  | D26: =IF(Fahrzeuge!$B29>"",Fahrzeuge!I29,"") ->  | E26: =IF(Fahrzeuge!$B29>"",Fahrzeuge!K29,"") -> 
A27: =IF(Fahrzeuge!B30>"",Fahrzeuge!A30,A26) -> 0 | B27: =IF(Fahrzeuge!$B30>"",CONCATENATE(Fahrzeuge!AI30," ",Fahrzeuge!B30),"") ->  | C27: =IF(Fahrzeuge!$B30>"",Fahrzeuge!G30,"") ->  | D27: =IF(Fahrzeuge!$B30>"",Fahrzeuge!I30,"") ->  | E27: =IF(Fahrzeuge!$B30>"",Fahrzeuge!K30,"") -> 
A28: =IF(Fahrzeuge!B31>"",Fahrzeuge!A31,A27) -> 0 | B28: =IF(Fahrzeuge!$B31>"",CONCATENATE(Fahrzeuge!AI31," ",Fahrzeuge!B31),"") ->  | C28: =IF(Fahrzeuge!$B31>"",Fahrzeuge!G31,"") ->  | D28: =IF(Fahrzeuge!$B31>"",Fahrzeuge!I31,"") ->  | E28: =IF(Fahrzeuge!$B31>"",Fahrzeuge!K31,"") -> 
A29: =IF(Fahrzeuge!B32>"",Fahrzeuge!A32,A28) -> 0 | B29: =IF(Fahrzeuge!$B32>"",CONCATENATE(Fahrzeuge!AI32," ",Fahrzeuge!B32),"") ->  | C29: =IF(Fahrzeuge!$B32>"",Fahrzeuge!G32,"") ->  | D29: =IF(Fahrzeuge!$B32>"",Fahrzeuge!I32,"") ->  | E29: =IF(Fahrzeuge!$B32>"",Fahrzeuge!K32,"") -> 
A30: =IF(Fahrzeuge!B33>"",Fahrzeuge!A33,A29) -> 0 | B30: =IF(Fahrzeuge!$B33>"",CONCATENATE(Fahrzeuge!AI33," ",Fahrzeuge!B33),"") ->  | C30: =IF(Fahrzeuge!$B33>"",Fahrzeuge!G33,"") ->  | D30: =IF(Fahrzeuge!$B33>"",Fahrzeuge!I33,"") ->  | E30: =IF(Fahrzeuge!$B33>"",Fahrzeuge!K33,"") -> 
A31: =IF(Fahrzeuge!B34>"",Fahrzeuge!A34,A30) -> 0 | B31: =IF(Fahrzeuge!$B34>"",CONCATENATE(Fahrzeuge!AI34," ",Fahrzeuge!B34),"") ->  | C31: =IF(Fahrzeuge!$B34>"",Fahrzeuge!G34,"") ->  | D31: =IF(Fahrzeuge!$B34>"",Fahrzeuge!I34,"") ->  | E31: =IF(Fahrzeuge!$B34>"",Fahrzeuge!K34,"") -> 
A32: =IF('sonst. PKW u. LFZ'!B7>"",A31+1,A31) -> 0 | B32: =IF('sonst. PKW u. LFZ'!$B7>"",CONCATENATE("LKW bzw. SFZ ",'sonst. PKW u. LFZ'!$B7),"") ->  | C32: =IF('sonst. PKW u. LFZ'!$B7>"",'sonst. PKW u. LFZ'!F7,"") ->  | D32: =IF('sonst. PKW u. LFZ'!$B7>"",'sonst. PKW u. LFZ'!G7,"") ->  | E32: =IF('sonst. PKW u. LFZ'!$B7>"",'sonst. PKW u. LFZ'!J7,"") -> 
A33: =IF('sonst. PKW u. LFZ'!B9>"",A32+1,A32) -> 0 | B33: =IF('sonst. PKW u. LFZ'!$B9>"",CONCATENATE("LKW bzw. SFZ ",'sonst. PKW u. LFZ'!$B9),"") ->  | C33: =IF('sonst. PKW u. LFZ'!$B9>"",'sonst. PKW u. LFZ'!F9,"") ->  | D33: =IF('sonst. PKW u. LFZ'!$B9>"",'sonst. PKW u. LFZ'!G9,"") ->  | E33: =IF('sonst. PKW u. LFZ'!$B9>"",'sonst. PKW u. LFZ'!J9,"") -> 
A34: =IF('sonst. PKW u. LFZ'!B11>"",A33+1,A33) -> 0 | B34: =IF('sonst. PKW u. LFZ'!$B11>"",CONCATENATE("LKW bzw. SFZ ",'sonst. PKW u. LFZ'!$B11),"") ->  | C34: =IF('sonst. PKW u. LFZ'!$B11>"",'sonst. PKW u. LFZ'!F11,"") ->  | D34: =IF('sonst. PKW u. LFZ'!$B11>"",'sonst. PKW u. LFZ'!G11,"") ->  | E34: =IF('sonst. PKW u. LFZ'!$B11>"",'sonst. PKW u. LFZ'!J11,"") -> 
A35: =IF('sonst. PKW u. LFZ'!B13>"",A34+1,A34) -> 0 | B35: =IF('sonst. PKW u. LFZ'!$B13>"",CONCATENATE("LKW bzw. SFZ ",'sonst. PKW u. LFZ'!$B13),"") ->  | C35: =IF('sonst. PKW u. LFZ'!$B13>"",'sonst. PKW u. LFZ'!F13,"") ->  | D35: =IF('sonst. PKW u. LFZ'!$B13>"",'sonst. PKW u. LFZ'!G13,"") ->  | E35: =IF('sonst. PKW u. LFZ'!$B13>"",'sonst. PKW u. LFZ'!J13,"") -> 
A36: =IF('sonst. PKW u. LFZ'!B15>"",A35+1,A35) -> 0 | B36: =IF('sonst. PKW u. LFZ'!$B15>"",CONCATENATE("LKW bzw. SFZ ",'sonst. PKW u. LFZ'!$B15),"") ->  | C36: =IF('sonst. PKW u. LFZ'!$B15>"",'sonst. PKW u. LFZ'!F15,"") ->  | D36: =IF('sonst. PKW u. LFZ'!$B15>"",'sonst. PKW u. LFZ'!G15,"") ->  | E36: =IF('sonst. PKW u. LFZ'!$B15>"",'sonst. PKW u. LFZ'!J15,"") -> 
A37: =IF('sonst. PKW u. LFZ'!B17>"",A36+1,A36) -> 0 | B37: =IF('sonst. PKW u. LFZ'!$B17>"",CONCATENATE("LKW bzw. SFZ ",'sonst. PKW u. LFZ'!$B17),"") ->  | C37: =IF('sonst. PKW u. LFZ'!$B17>"",'sonst. PKW u. LFZ'!F17,"") ->  | D37: =IF('sonst. PKW u. LFZ'!$B17>"",'sonst. PKW u. LFZ'!G17,"") ->  | E37: =IF('sonst. PKW u. LFZ'!$B17>"",'sonst. PKW u. LFZ'!J17,"") -> 
A38: =IF('sonst. PKW u. LFZ'!B19>"",A37+1,A37) -> 0 | B38: =IF('sonst. PKW u. LFZ'!$B19>"",CONCATENATE("LKW bzw. SFZ ",'sonst. PKW u. LFZ'!$B19),"") ->  | C38: =IF('sonst. PKW u. LFZ'!$B19>"",'sonst. PKW u. LFZ'!F19,"") ->  | D38: =IF('sonst. PKW u. LFZ'!$B19>"",'sonst. PKW u. LFZ'!G19,"") ->  | E38: =IF('sonst. PKW u. LFZ'!$B19>"",'sonst. PKW u. LFZ'!J19,"") -> 
A39: =IF('sonst. PKW u. LFZ'!B21>"",A38+1,A38) -> 0 | B39: =IF('sonst. PKW u. LFZ'!$B21>"",CONCATENATE("LKW bzw. SFZ ",'sonst. PKW u. LFZ'!$B21),"") ->  | C39: =IF('sonst. PKW u. LFZ'!$B21>"",'sonst. PKW u. LFZ'!F21,"") ->  | D39: =IF('sonst. PKW u. LFZ'!$B21>"",'sonst. PKW u. LFZ'!G21,"") ->  | E39: =IF('sonst. PKW u. LFZ'!$B21>"",'sonst. PKW u. LFZ'!J21,"") -> 
A40: =IF('sonst. PKW u. LFZ'!B23>"",A39+1,A39) -> 0 | B40: =IF('sonst. PKW u. LFZ'!$B23>"",CONCATENATE("LKW bzw. SFZ ",'sonst. PKW u. LFZ'!$B23),"") ->  | C40: =IF('sonst. PKW u. LFZ'!$B23>"",'sonst. PKW u. LFZ'!F23,"") ->  | D40: =IF('sonst. PKW u. LFZ'!$B23>"",'sonst. PKW u. LFZ'!G23,"") ->  | E40: =IF('sonst. PKW u. LFZ'!$B23>"",'sonst. PKW u. LFZ'!J23,"") -> 
A41: =IF('sonst. PKW u. LFZ'!B25>"",A40+1,A40) -> 0 | B41: =IF('sonst. PKW u. LFZ'!$B25>"",CONCATENATE("LKW bzw. SFZ ",'sonst. PKW u. LFZ'!$B25),"") ->  | C41: =IF('sonst. PKW u. LFZ'!$B25>"",'sonst. PKW u. LFZ'!F25,"") ->  | D41: =IF('sonst. PKW u. LFZ'!$B25>"",'sonst. PKW u. LFZ'!G25,"") ->  | E41: =IF('sonst. PKW u. LFZ'!$B25>"",'sonst. PKW u. LFZ'!J25,"") -> 
A42: =IF(Ladeinfrastruktur!$B6>"",A41+1,A41) -> 0 | B42: =IF(Ladeinfrastruktur!$B6>"",CONCATENATE(" LIS ",Ladeinfrastruktur!B6),"") ->  | C42: =IF($B42>"",Ladeinfrastruktur!C6,"") ->  | D42: =IF($B42>"",Ladeinfrastruktur!D6,"") ->  | E42: =IF($B42>"",Ladeinfrastruktur!E6,"") -> 
A43: =IF(Ladeinfrastruktur!$B8>"",A42+1,A42) -> 0 | B43: =IF(Ladeinfrastruktur!$B8>"",CONCATENATE(" LIS ",Ladeinfrastruktur!B8),"") ->  | C43: =IF($B43>"",Ladeinfrastruktur!C8,"") ->  | D43: =IF($B43>"",Ladeinfrastruktur!D8,"") ->  | E43: =IF($B43>"",Ladeinfrastruktur!E8,"") -> 
A44: =IF(Ladeinfrastruktur!$B10>"",A43+1,A43) -> 0 | B44: =IF(Ladeinfrastruktur!$B10>"",CONCATENATE(" LIS ",Ladeinfrastruktur!B10),"") ->  | C44: =IF($B44>"",Ladeinfrastruktur!C10,"") ->  | D44: =IF($B44>"",Ladeinfrastruktur!D10,"") ->  | E44: =IF($B44>"",Ladeinfrastruktur!E10,"") -> 
A45: =IF(Ladeinfrastruktur!$B12>"",A44+1,A44) -> 0 | B45: =IF(Ladeinfrastruktur!$B12>"",CONCATENATE(" LIS ",Ladeinfrastruktur!B12),"") ->  | C45: =IF($B45>"",Ladeinfrastruktur!C12,"") ->  | D45: =IF($B45>"",Ladeinfrastruktur!D12,"") ->  | E45: =IF($B45>"",Ladeinfrastruktur!E12,"") -> 
A46: =IF(Ladeinfrastruktur!$B14>"",A45+1,A45) -> 0 | B46: =IF(Ladeinfrastruktur!$B14>"",CONCATENATE(" LIS ",Ladeinfrastruktur!B14),"") ->  | C46: =IF($B46>"",Ladeinfrastruktur!C14,"") ->  | D46: =IF($B46>"",Ladeinfrastruktur!D14,"") ->  | E46: =IF($B46>"",Ladeinfrastruktur!E14,"") -> 
A47: =IF(Ladeinfrastruktur!$B16>"",A46+1,A46) -> 0 | B47: =IF(Ladeinfrastruktur!$B16>"",CONCATENATE(" LIS ",Ladeinfrastruktur!B16),"") ->  | C47: =IF($B47>"",Ladeinfrastruktur!C16,"") ->  | D47: =IF($B47>"",Ladeinfrastruktur!D16,"") ->  | E47: =IF($B47>"",Ladeinfrastruktur!E16,"") -> 
A48: =IF(Ladeinfrastruktur!$B18>"",A47+1,A47) -> 0 | B48: =IF(Ladeinfrastruktur!$B18>"",CONCATENATE(" LIS ",Ladeinfrastruktur!B18),"") ->  | C48: =IF($B48>"",Ladeinfrastruktur!C18,"") ->  | D48: =IF($B48>"",Ladeinfrastruktur!D18,"") ->  | E48: =IF($B48>"",Ladeinfrastruktur!E18,"") -> 
A49: =IF(Ladeinfrastruktur!$B20>"",A48+1,A48) -> 0 | B49: =IF(Ladeinfrastruktur!$B20>"",CONCATENATE(" LIS ",Ladeinfrastruktur!B20),"") ->  | C49: =IF($B49>"",Ladeinfrastruktur!C20,"") ->  | D49: =IF($B49>"",Ladeinfrastruktur!D20,"") ->  | E49: =IF($B49>"",Ladeinfrastruktur!E20,"") -> 
A50: =IF(Ladeinfrastruktur!$B22>"",A49+1,A49) -> 0 | B50: =IF(Ladeinfrastruktur!$B22>"",CONCATENATE(" LIS ",Ladeinfrastruktur!B22),"") ->  | C50: =IF($B50>"",Ladeinfrastruktur!C22,"") ->  | D50: =IF($B50>"",Ladeinfrastruktur!D22,"") ->  | E50: =IF($B50>"",Ladeinfrastruktur!E22,"") -> 
A51: =IF(Ladeinfrastruktur!$B24>"",A50+1,A50) -> 0 | B51: =IF(Ladeinfrastruktur!$B24>"",CONCATENATE(" LIS ",Ladeinfrastruktur!B24),"") ->  | C51: =IF($B51>"",Ladeinfrastruktur!C24,"") ->  | D51: =IF($B51>"",Ladeinfrastruktur!D24,"") ->  | E51: =IF($B51>"",Ladeinfrastruktur!E24,"") -> 
A52: =IF('spezielle Ladeinfrastruktur'!$B7>"",A51+1,A51) -> 0 | B52: =IF('spezielle Ladeinfrastruktur'!B7>"",CONCATENATE(" LIS ",'spezielle Ladeinfrastruktur'!B7),"") ->  | C52: =IF('spezielle Ladeinfrastruktur'!$B7>"",'spezielle Ladeinfrastruktur'!C7,"") ->  | D52: =IF('spezielle Ladeinfrastruktur'!$B7>"",'spezielle Ladeinfrastruktur'!D7,"") ->  | E52: =IF('spezielle Ladeinfrastruktur'!$B7>"",'spezielle Ladeinfrastruktur'!E7,"") -> 
A53: =IF('spezielle Ladeinfrastruktur'!$B9>"",A52+1,A52) -> 0 | B53: =IF('spezielle Ladeinfrastruktur'!B9>"",CONCATENATE(" LIS ",'spezielle Ladeinfrastruktur'!B9),"") ->  | C53: =IF('spezielle Ladeinfrastruktur'!$B9>"",'spezielle Ladeinfrastruktur'!C9,"") ->  | D53: =IF('spezielle Ladeinfrastruktur'!$B9>"",'spezielle Ladeinfrastruktur'!D9,"") ->  | E53: =IF('spezielle Ladeinfrastruktur'!$B9>"",'spezielle Ladeinfrastruktur'!E9,"") -> 
A54: =IF('spezielle Ladeinfrastruktur'!$B11>"",A53+1,A53) -> 0 | B54: =IF('spezielle Ladeinfrastruktur'!B11>"",CONCATENATE(" LIS ",'spezielle Ladeinfrastruktur'!B11),"") ->  | C54: =IF('spezielle Ladeinfrastruktur'!$B11>"",'spezielle Ladeinfrastruktur'!C11,"") ->  | D54: =IF('spezielle Ladeinfrastruktur'!$B11>"",'spezielle Ladeinfrastruktur'!D11,"") ->  | E54: =IF('spezielle Ladeinfrastruktur'!$B11>"",'spezielle Ladeinfrastruktur'!E11,"") -> 
A55: =IF('spezielle Ladeinfrastruktur'!$B13>"",A54+1,A54) -> 0 | B55: =IF('spezielle Ladeinfrastruktur'!B13>"",CONCATENATE(" LIS ",'spezielle Ladeinfrastruktur'!B13),"") ->  | C55: =IF('spezielle Ladeinfrastruktur'!$B13>"",'spezielle Ladeinfrastruktur'!C13,"") ->  | D55: =IF('spezielle Ladeinfrastruktur'!$B13>"",'spezielle Ladeinfrastruktur'!D13,"") ->  | E55: =IF('spezielle Ladeinfrastruktur'!$B13>"",'spezielle Ladeinfrastruktur'!E13,"") -> 
A56: =IF('spezielle Ladeinfrastruktur'!$B15>"",A55+1,A55) -> 0 | B56: =IF('spezielle Ladeinfrastruktur'!B15>"",CONCATENATE(" LIS ",'spezielle Ladeinfrastruktur'!B15),"") ->  | C56: =IF('spezielle Ladeinfrastruktur'!$B15>"",'spezielle Ladeinfrastruktur'!C15,"") ->  | D56: =IF('spezielle Ladeinfrastruktur'!$B15>"",'spezielle Ladeinfrastruktur'!D15,"") ->  | E56: =IF('spezielle Ladeinfrastruktur'!$B15>"",'spezielle Ladeinfrastruktur'!E15,"") -> 
A57: =IF('spezielle Ladeinfrastruktur'!$B17>"",A56+1,A56) -> 0 | B57: =IF('spezielle Ladeinfrastruktur'!B17>"",CONCATENATE(" LIS ",'spezielle Ladeinfrastruktur'!B17),"") ->  | C57: =IF('spezielle Ladeinfrastruktur'!$B17>"",'spezielle Ladeinfrastruktur'!C17,"") ->  | D57: =IF('spezielle Ladeinfrastruktur'!$B17>"",'spezielle Ladeinfrastruktur'!D17,"") ->  | E57: =IF('spezielle Ladeinfrastruktur'!$B17>"",'spezielle Ladeinfrastruktur'!E17,"") -> 
A58: =IF('spezielle Ladeinfrastruktur'!$B19>"",A57+1,A57) -> 0 | B58: =IF('spezielle Ladeinfrastruktur'!B19>"",CONCATENATE(" LIS ",'spezielle Ladeinfrastruktur'!B19),"") ->  | C58: =IF('spezielle Ladeinfrastruktur'!$B19>"",'spezielle Ladeinfrastruktur'!C19,"") ->  | D58: =IF('spezielle Ladeinfrastruktur'!$B19>"",'spezielle Ladeinfrastruktur'!D19,"") ->  | E58: =IF('spezielle Ladeinfrastruktur'!$B19>"",'spezielle Ladeinfrastruktur'!E19,"") -> 
A59: =IF('spezielle Ladeinfrastruktur'!$B21>"",A58+1,A58) -> 0 | B59: =IF('spezielle Ladeinfrastruktur'!B21>"",CONCATENATE(" LIS ",'spezielle Ladeinfrastruktur'!B21),"") ->  | C59: =IF('spezielle Ladeinfrastruktur'!$B21>"",'spezielle Ladeinfrastruktur'!C21,"") ->  | D59: =IF('spezielle Ladeinfrastruktur'!$B21>"",'spezielle Ladeinfrastruktur'!D21,"") ->  | E59: =IF('spezielle Ladeinfrastruktur'!$B21>"",'spezielle Ladeinfrastruktur'!E21,"") -> 
A60: =IF('spezielle Ladeinfrastruktur'!$B23>"",A59+1,A59) -> 0 | B60: =IF('spezielle Ladeinfrastruktur'!B23>"",CONCATENATE(" LIS ",'spezielle Ladeinfrastruktur'!B23),"") ->  | C60: =IF('spezielle Ladeinfrastruktur'!$B23>"",'spezielle Ladeinfrastruktur'!C23,"") ->  | D60: =IF('spezielle Ladeinfrastruktur'!$B23>"",'spezielle Ladeinfrastruktur'!D23,"") ->  | E60: =IF('spezielle Ladeinfrastruktur'!$B23>"",'spezielle Ladeinfrastruktur'!E23,"") -> 
A61: =IF('spezielle Ladeinfrastruktur'!$B25>"",A60+1,A60) -> 0 | B61: =IF('spezielle Ladeinfrastruktur'!B25>"",CONCATENATE(" LIS ",'spezielle Ladeinfrastruktur'!B25),"") ->  | C61: =IF('spezielle Ladeinfrastruktur'!$B25>"",'spezielle Ladeinfrastruktur'!C25,"") ->  | D61: =IF('spezielle Ladeinfrastruktur'!$B25>"",'spezielle Ladeinfrastruktur'!D25,"") ->  | E61: =IF('spezielle Ladeinfrastruktur'!$B25>"",'spezielle Ladeinfrastruktur'!E25,"") -> 
D62: Summe: | E62: =ROUND(SUM(E12:E61),0) -> 0
C64: =IF(A70>0,IF($E$62<F71,F78,IF($E$62>F72,F80,F79)),"") -> 
C65: =IF(A70>0,IF($E$62<G71,G78,IF($E$62>G72,G80,G79)),"") -> 
A69: Vorsteuerabzug | B69: Wertgrenzen | C69: Netto | D69: Brutto | E69: spezifische Beträge | F69: Betrag bei FQ 40% | G69: Betrag bei FQ 50%
A70: =Fahrzeuge!$C$6 -> 0
B71: Fördermindestbetrag: | C71: 15000 | D71: 17850 | E71: =IF($A$70="ja",C71,IF($A$70="nein",D71,0)) -> 0 | F71: =E71/0.4 -> 0 | G71: =E71/0.5 -> 0
B72: Förderhöchstbetrag: | C72: 1000000 | D72: 1190000 | E72: =IF($A$70="ja",C72,IF($A$70="nein",D72,0)) -> 0 | F72: =E72/0.4 -> 0 | G72: =E72/0.5 -> 0
B74: Backup | C74: =WENN($A$70="Ja";WENN($E$62*40%<$C$71;$F$78;WENN($E$62*40%>$C$72;$F$80;""));WENN($E$62*40%<$D$71;$F$78;WENN($E$62*40%>$D$72;$F$80;"")))
C75: =WENN($A$70="Ja";WENN($E$62*50%<$C$71;$G$78;WENN($E$62*50%>$C$72;$G$80;""));WENN($E$62*50%<$D$71;$G$78;WENN($E$62*50%>$D$72;$G$80;"")))
F76: Text
F78: Fördermindestbetrag bei Förderquote 40 % unterschritten | G78: Fördermindestbetrag bei Förderquote 50 % unterschritten
F79: Fördermindestbetrag bei Förderquote 40 % erreicht | G79: Fördermindestbetrag bei Förderquote 50 % erreicht
F80: Förderhöchstbetrag bei Förderquote 40 % überschritten | G80: Förderhöchstbetrag bei Förderquote 50 % überschritten
